Workbook

Sheet Anleitung
B2: Anleitung zum Mirwald-Test zur Bestimmung des biologischen Entwicklungsstandes bei Mädchen und Knaben
B4: Stichwortartige Zusammenfassung des Testprotokolls
B6: Körpergewicht bestimmen
C7: 1. | D7: Kalibrierte Waage verwenden – Nullmessung überprüfen
C8: 2. | D8: Athlet/in mittig auf Waage, Gewicht auf beide Füsse gleichmässig verteilt
C9: 3. | D9: Messung auf 0.1 kg genau
C10: 4. | D10: Erneute Durchführung der Schritte 1 bis 3
C11: 5. | D11: Falls Unterschied zw. 1. und 2. Messung kleiner als 0.4 kg, dann Durchschnitt als Ergebnis verwenden.
D12: Falls Unterschied grösser ist als 0.4 kg, dann wieder bei Punkt 1 beginnen.
B14: Körpergrösse stehend
C15: (in „gestreckter“ Haltung – maximale Distanz zwischen Boden und Scheitel des Kopfes.
C16: Der Scheitel gilt dabei als höchster Punkt des Schädels, wenn der Kopf exakt horizontal gehalten wird).
C18: 1. | D18: Athlet/in steht mit Rücken, Gesäss und Fersen gegen die Wand. Füsse sind zusammen und flach auf dem Boden.
C19: 2. | D19: Kopf / Blick horizontal ausrichten.
C20: 3. | D20: Athlet/in atmet möglichst tief ein und hält den Atem an.
C21: 4. | D21: In der maximal gestreckten Haltung (Füsse immer noch flach auf dem Boden) und am Ende der tiefen Atmung, wird auf 0.1 cm genau gemessen.
C22: 5. | D22: Athlet/in verlässt den Messplatz.
C23: 6. | D23: Erneute Durchführung der Schritte 1 bis 5.
C24: 7. | D24: Falls Unterschied zw. 1. und 2. Messung kleiner als 0.4 cm, dann Durchschnitt als Ergebnis verwenden.
D25: Falls Unterschied grösser ist als 0.4 cm, dann wieder bei Schritt 1 beginnen.
B27: Körpergrösse sitzend
C28: (ebenfalls in „gestreckter“ Haltung – maximale Distanz zwischen Scheitel des Kopfes und Oberfläche der Sitzunterlage).
C30: 1. | D30: Athlet/in setzt sich auf eine Sitzunterlage von bekannter Höhe. Die Hände / Arme liegen locker auf den Oberschenkeln, Gesäss und Rücken gegen die Wand.
C31: 2. | D31: Athlet/in atmet möglichst tief ein und hält den Atem an. Kopf / Blick sind horizontal ausgerichtet.
D32: Wichtig: Athlet/in darf nicht mit den Füssen vom Boden abstossen und darf nicht die Gesässmuskulatur anspannen.
C33: 3. | D33: In der maximal gestreckten Haltung und am Ende der tiefen Atmung wird auf 0.1 cm genau gemessen.
C34: 4. | D34: Athlet/in verlässt den Messplatz.
C35: 5. | D35: Erneute Durchführung der Schritte 1 bis 4.
C36: 6. | D36: Falls Unterschied zw. 1. und 2. Messung kleiner 0.4 cm, dann Durchschnitt als Ergebnis verwenden.
D37: Falls Unterschied grösser ist als 0.4 cm, dann wieder bei Schritt 1 beginnen.
B39: Es empfiehlt sich, das Protokoll vor der Messung mit mehreren Athlet/innen auszuprobieren.
B41: Eingabe im Eingabeblatt:
C42: 1. | D42: Auf "neue Eingabe" anklicken
C43: 2. | D43: Daten eingeben in Kolonne B bis H
C44: 3. | D44: Geschlecht vergeben in Kolonne A (m oder f in der Liste auswählen)
B46: Autoren: Marie Javet, Markus Tschopp & Michael Romann (BASPO)
B47: Kontakt: Verbandssupport Leistungssport Swiss Olympic
B48: Version: Januar 2022
B50: Literatur:
B51: Mirwald, R. L., Baxter-Jones, A. D., Bailey, D. A., & Beunen, G. P. (2002). An assessment of maturity from anthropometric
B52: measurements. Medicine and science in sports and exercise, 34(4), 689-694.

Sheet Instructions
B2: Test Mirwald pour la détermination de l’état de développement biologique des garçons et des filles: guide de réalisation
B4: Le protocole de test en bref
B6: Poids corporel
C7: 1. | D7: Utiliser une balance calibrée. Contrôler le zéro.
C8: 2. | D8: L’athlète doit se placer au milieu de la balance, son poids réparti équitablement sur ses deux pieds.
C9: 3. | D9: Mesurer le poids à 0,1 kg près.
C10: 4. | D10: Répéter les étapes 1 à 3.
C11: 5. | D11: Si les deux résultats divergent de moins de 0,4 kg, le résultat pris en compte sera la moyenne des deux valeurs.
D12: Si l’écart entre les deux résultats est supérieur à 0,4 kg, recommencer à l’étape 1.
B14: Taille debout
C15: (à mesurer en position «étendue», c’est-à-dire avec une distance maximale entre le sol et le sommet de la tête.
C16: Sommet de la tête = point du crâne le plus haut lorsque la tête est tenue exactement à l’horizontale).
C18: 1. | D18: L’athlète est debout, adossé au mur. Son dos, ses fesses et ses talons doivent toucher le mur. Ses pieds sont joints et posés à plat sur le sol.
C19: 2. | D19: Tête / regard à l’horizontale.
C20: 3. | D20: L’athlète inspire aussi profondément que possible et bloque sa respiration.
C21: 4. | D21: Dans la position étendue maximale (les pieds restent sur le sol) et à la fin de la respiration profonde, mesurer la taille du joueur à 0,1 cm près.
C22: 5. | D22: L’athlète se retire de l’endroit de la mesure.
C23: 6. | D23: Répéter les étapes 1 à 5.
C24: 7. | D24: Si les deux résultats divergent de moins de 0,4 cm, le résultat pris en compte sera la moyenne des deux valeurs.
D25: Si l’écart entre les deux résultats est supérieur à 0,4 cm, recommencer à l’étape 1.
B27: Taille assis
C28: (se mesure également dans une position dite «étendue » c’est-à-dire avec une distance maximale entre le sol et la surface du siège).
C30: 1. | D30: L’athlète s’assoit sur un siège dont la hauteur est connue. Les mains/bras reposent détendus sur les cuisses ; les fesses et le dos sont contre le mur.
C31: 2. | D31: L’athlète inspire profondément puis bloque sa respiration. Tête et regard sont à l’horizontale.
D32: Important: l’athlète ne doit pas tendre les muscles du fessier ni exercer de poussée contre le sol avec ses pieds.
C33: 3. | D33: Mesurer la taille en position étendue maximale, à la fin de l’inspiration profonde, à 0,1 cm près.
C34: 4. | D34: L’athlète se retire de l’endroit de la mesure.
C35: 5. | D35: Répéter les étapes 1 à 4.
C36: 6. | D36: Si les deux résultats divergent de moins de 0,4 cm, le résultat pris en compte sera la moyenne des deux valeurs.
D37: Si l’écart entre les deux résultats est supérieur à 0,4 cm, recommencer à l’étape 1.
B39: Nous vous recommandons d’exercer ce protocole avec plusieurs joueurs avant la réalisation du test proprement dit.
B41: Entrée des données dans la feuille de données (Eingabeblatt)
C42: 1. | D42: Cliquer sur le bouton nouvelle entrée
C43: 2. | D43: Entrer les données dans la colonne B à H
C44: 3. | D44: Attribuer le sexe à chaque athlète dans la colonne A (m ou f dans la liste déroulante)
B46: Auteurs: Marie Javet, Markus Tschopp & Michael Romann (OFSPO)
B47: Contact: Soutien aux fédérations dans le sport de compétition Swiss Olympic
B48: Version: janvier 2022
B50: Littérature:
B51: Mirwald, R. L., Baxter-Jones, A. D., Bailey, D. A., & Beunen, G. P. (2002). An assessment of maturity from anthropometric
B52: measurements. Medicine and science in sports and exercise, 34(4), 689-694.

Sheet Eingabeblatt
A4: Geschlecht m = male / f = female Sexe m = homme / f = femme | B4: Messdatum Date de la mesure | C4: Name Nom | D4: Vorname Prénom | E4: Geburtsdatum (tt.mm.jjjj) Date de naissance (jj.mm.aaaa) | F4: Körpergewicht auf der Waage (Kg) Poids sur la balance (kg) | G4: Gewicht Kleidung (Kg) poids des habits (kg) | H4: Effektives Gewicht (Kg) Poids effectif (kg) | I4: Körpergrösse stehend (cm) Taille debout (cm) | J4: Körpergrösse sitzend (cm) inkl. Sitzhöhe Taille assise inclus support (cm) | K4: Stuhl/PlyoBox… höhe (cm) hauteur de la chaise, de la box,… (cm) | L4: Körpergrösse sitzend (cm) Taille assise (cm) | M4: Beinlänge (cm) Longueur des jambes (cm) | N4: aktuelles chronologisches Alter Âge chronologique actuel | O4: Geschätztes Alter beim Wachstumsspurt Âge estimé au pic de croissance | P4: Reifestand Etat de maturité | Q4: Biologischer Entwicklungsstand Etat de développement biologique | R4: Bio. Entwicklungsstand Zahl (1-3) Etat de développement biologique Catégorie 1-3 | S4: BES Zahl (1-5) Dév. bio. Catégorie 1-5 | T4: BES Zahl (1-5) Dév. Bio Catégorie 1-5 | U4: Geschätzte Erwachsenegrösse ( ± 5.4cm) Taille estimée à l'âge adulte ( ± 5.4cm) | V4: Geschätzte Wachstumsreserve (cm) Réserve de croissance estimée (cm) | W4: Prozent Erwachsenengrösse Pourcentage de la taille adulte atteinte actuellement | AA4: Spaltenangabe Tabelle
A5: m | B5: 2024-09-13 | C5: rogez | D5: Lucas | E5: 2002-07-15 | F5: 75 | G5: 0 | H5: =F5-G5 -> 75 | I5: 188 | J5: 169.5 | K5: 71.5 | L5: =J5-K5 -> 98 | M5: =I5-L5 -> 90 | N5: =(B5-E5)/365.25 -> 22.16563997 | O5: =N5-P5 -> 15.74152232 | P5: =IF(A5="m",(-9.236+(0.0002708*M5*L5)+(-0.001663*N5*M5)+(0.007216*N5*L5)+(0.02292*H5/I5*100)),(-9.376+(0.0001882*M5*L5)+(0.0022*N5*M5)+(0.005841*N5*L5)-(0.002658*N5*H5)+(0.07693*(H5/I5)*100))) -> 6.424117656 | Q5: =IF(R5=1,"Früh / précoce",IF(R5=2,"Durchschnittlich / Normal","Spät / Tardif")) -> Spät / Tardif | R5: =IF(A5="m",(IF(O5<12.8,1,IF(O5>14.8,3,2))),(IF(O5<11,1,IF(O5>13,3,2)))) -> 3 | S5: =IF(A5="m",(IF(O5<12.8,1,IF(O5<13.3,2,IF(O5>14.8,5,IF(O5>14.3,4,3))))),(IF(O5<11,1,IF(O5<11.5,2,IF(O5>13,5,IF(O5>12.5,4,3)))))) -> 5 | T5: =IF(S5=1,"Früh / précoce",IF(S5=2,"Möglicherweise Früh / éventuellement précoce", IF(S5=3,"Durchschnittlich / Normal",IF(S5=4,"Möglicherweise spät / éventuellement tardif","Spät / Tardif")))) -> Spät / Tardif | U5: =I5+V5 -> 188 | V5: =IF(A5="m",VLOOKUP(P5,Berechnung_Male!$A$1:$D$42,AA5,TRUE),VLOOKUP(Eingabeblatt!P5,Berechnung_Female!$A$1:$D$42,AA5,TRUE)) -> 0 | W5: =I5/U5 -> 1 | AA5: =IF(A5="m",IF(O5<12.8,2,IF(O5<14.8,3,4)),IF(O5<11,2,IF(O5<13,3,4))) -> 4 | AC5: m
A6: m | B6: 2024-09-13 | E6: 2012-03-12 | F6: 60 | G6: 0.5 | H6: =F6-G6 -> 59.5 | I6: 155 | J6: 145 | K6: 75 | L6: =J6-K6 -> 70 | M6: =I6-L6 -> 85 | N6: =(B6-E6)/365.25 -> 12.5065024 | O6: =N6-P6 -> 14.70198229 | P6: =IF(A6="m",(-9.236+(0.0002708*M6*L6)+(-0.001663*N6*M6)+(0.007216*N6*L6)+(0.02292*H6/I6*100)),(-9.376+(0.0001882*M6*L6)+(0.0022*N6*M6)+(0.005841*N6*L6)-(0.002658*N6*H6)+(0.07693*(H6/I6)*100))) -> -2.195479898 | Q6: =IF(R6=1,"Früh / précoce",IF(R6=2,"Durchschnittlich / Normal","Spät / Tardif")) -> Durchschnittlich / Normal | R6: =IF(A6="m",(IF(O6<12.8,1,IF(O6>14.8,3,2))),(IF(O6<11,1,IF(O6>13,3,2)))) -> 2 | S6: 4 | T6: =IF(S6=1,"Früh / précoce",IF(S6=2,"Möglicherweise Früh / éventuellement précoce", IF(S6=3,"Durchschnittlich / Normal",IF(S6=4,"Möglicherweise spät / éventuellement tardif","Spät / Tardif")))) -> Möglicherweise spät / éventuellement tardif | U6: =I6+V6 -> 186.07 | V6: =IF(A6="m",VLOOKUP(P6,Berechnung_Male!$A$1:$D$42,AA6,TRUE),VLOOKUP(Eingabeblatt!P6,Berechnung_Female!$A$1:$D$42,AA6,TRUE)) -> 31.07 | W6: =I6/U6 -> 0.8330198312 | AA6: 3 | AC6: f
A7: m | B7: 2024-09-15 | E7: 2014-03-15 | F7: 60 | G7: 0.5 | H7: 59.5 | I7: 155 | J7: 145 | K7: 75 | L7: 70 | M7: 85 | N7: 10.50513347 | O7: 13.42864134 | P7: -2.923507865 | Q7: Durchschnittlich / Normal | R7: 2 | S7: 3 | T7: Durchschnittlich / Normal | U7: 190.04 | V7: =IF(A7="m",VLOOKUP(P7,Berechnung_Male!$A$1:$D$42,AA7,TRUE),VLOOKUP(Eingabeblatt!P7,Berechnung_Female!$A$1:$D$42,AA7,TRUE)) -> 35.04 | W7: 0.8156177647 | AA7: 3
A8: f | B8: 2024-09-16 | E8: 2014-03-16 | F8: 60 | G8: 0.5 | H8: 59.5 | I8: 155 | J8: 145 | K8: 75 | L8: 70 | M8: 85 | N8: 10.50513347 | O8: 11.2099276 | P8: -0.7047941277 | Q8: Durchschnittlich / Normal | R8: 2 | S8: 2 | T8: Möglicherweise Früh / éventuellement précoce | U8: 175.44 | V8: =IF(A8="m",VLOOKUP(P8,Berechnung_Male!$A$1:$D$42,AA8,TRUE),VLOOKUP(Eingabeblatt!P8,Berechnung_Female!$A$1:$D$42,AA8,TRUE)) -> 20.44 | W8: 0.8834929321 | AA8: 3
H9: 0 | L9: 0 | M9: 0 | N9: 0 | V9: =IF(A9="m",VLOOKUP(P9,Berechnung_Male!$A$1:$D$42,AA9,TRUE),VLOOKUP(Eingabeblatt!P9,Berechnung_Female!$A$1:$D$42,AA9,TRUE)) -> 
H10: 0 | L10: 0 | M10: 0 | N10: 0 | V10: =IF(A10="m",VLOOKUP(P10,Berechnung_Male!$A$1:$D$42,AA10,TRUE),VLOOKUP(Eingabeblatt!P10,Berechnung_Female!$A$1:$D$42,AA10,TRUE)) -> 
H11: 0 | L11: 0 | M11: 0 | N11: 0 | V11: =IF(A11="m",VLOOKUP(P11,Berechnung_Male!$A$1:$D$42,AA11,TRUE),VLOOKUP(Eingabeblatt!P11,Berechnung_Female!$A$1:$D$42,AA11,TRUE)) -> 
H12: 0 | L12: 0 | M12: 0 | N12: 0 | V12: =IF(A12="m",VLOOKUP(P12,Berechnung_Male!$A$1:$D$42,AA12,TRUE),VLOOKUP(Eingabeblatt!P12,Berechnung_Female!$A$1:$D$42,AA12,TRUE)) -> 
H13: 0 | L13: 0 | M13: 0 | N13: 0 | V13: =IF(A13="m",VLOOKUP(P13,Berechnung_Male!$A$1:$D$42,AA13,TRUE),VLOOKUP(Eingabeblatt!P13,Berechnung_Female!$A$1:$D$42,AA13,TRUE)) -> 
H14: 0 | L14: 0 | M14: 0 | N14: 0 | V14: =IF(A14="m",VLOOKUP(P14,Berechnung_Male!$A$1:$D$42,AA14,TRUE),VLOOKUP(Eingabeblatt!P14,Berechnung_Female!$A$1:$D$42,AA14,TRUE)) -> 
H15: 0 | L15: 0 | M15: 0 | N15: 0 | P15: =IF(A15="m",(-9.236+(0.0002708*M15*L15)+(-0.001663*N15*M15)+(0.007216*N15*L15)+(0.02292*H15/I15*100)),(-9.376+(0.0001882*M15*L15)+(0.0022*N15*M15)+(0.005841*N15*L15)-(0.002658*N15*H15)+(0.07693*(H15/I15)*100))) ->  | V15: =IF(A15="m",VLOOKUP(P15,Berechnung_Male!$A$1:$D$42,AA15,TRUE),VLOOKUP(Eingabeblatt!P15,Berechnung_Female!$A$1:$D$42,AA15,TRUE)) -> 
H16: 0 | L16: 0 | M16: 0 | N16: 0 | V16: =IF(A16="m",VLOOKUP(P16,Berechnung_Male!$A$1:$D$42,AA16,TRUE),VLOOKUP(Eingabeblatt!P16,Berechnung_Female!$A$1:$D$42,AA16,TRUE)) -> 
H17: 0 | L17: 0 | M17: 0 | N17: 0 | V17: =IF(A17="m",VLOOKUP(P17,Berechnung_Male!$A$1:$D$42,AA17,TRUE),VLOOKUP(Eingabeblatt!P17,Berechnung_Female!$A$1:$D$42,AA17,TRUE)) -> 
H18: 0 | L18: 0 | M18: 0 | N18: 0 | V18: =IF(A18="m",VLOOKUP(P18,Berechnung_Male!$A$1:$D$42,AA18,TRUE),VLOOKUP(Eingabeblatt!P18,Berechnung_Female!$A$1:$D$42,AA18,TRUE)) -> 
H19: 0 | L19: 0 | M19: 0 | N19: 0 | V19: =IF(A19="m",VLOOKUP(P19,Berechnung_Male!$A$1:$D$42,AA19,TRUE),VLOOKUP(Eingabeblatt!P19,Berechnung_Female!$A$1:$D$42,AA19,TRUE)) -> 
H20: 0 | L20: 0 | M20: 0 | N20: 0 | V20: =IF(A20="m",VLOOKUP(P20,Berechnung_Male!$A$1:$D$42,AA20,TRUE),VLOOKUP(Eingabeblatt!P20,Berechnung_Female!$A$1:$D$42,AA20,TRUE)) -> 
H21: 0 | L21: 0 | M21: 0 | N21: 0 | V21: =IF(A21="m",VLOOKUP(P21,Berechnung_Male!$A$1:$D$42,AA21,TRUE),VLOOKUP(Eingabeblatt!P21,Berechnung_Female!$A$1:$D$42,AA21,TRUE)) -> 
H22: 0 | L22: 0 | M22: 0 | N22: 0 | V22: =IF(A22="m",VLOOKUP(P22,Berechnung_Male!$A$1:$D$42,AA22,TRUE),VLOOKUP(Eingabeblatt!P22,Berechnung_Female!$A$1:$D$42,AA22,TRUE)) -> 
H23: 0 | L23: 0 | M23: 0 | N23: 0 | V23: =IF(A23="m",VLOOKUP(P23,Berechnung_Male!$A$1:$D$42,AA23,TRUE),VLOOKUP(Eingabeblatt!P23,Berechnung_Female!$A$1:$D$42,AA23,TRUE)) -> 
H24: 0 | L24: 0 | M24: 0 | N24: 0 | V24: =IF(A24="m",VLOOKUP(P24,Berechnung_Male!$A$1:$D$42,AA24,TRUE),VLOOKUP(Eingabeblatt!P24,Berechnung_Female!$A$1:$D$42,AA24,TRUE)) -> 
H25: 0 | L25: 0 | M25: 0 | N25: 0 | V25: =IF(A25="m",VLOOKUP(P25,Berechnung_Male!$A$1:$D$42,AA25,TRUE),VLOOKUP(Eingabeblatt!P25,Berechnung_Female!$A$1:$D$42,AA25,TRUE)) -> 
H26: 0 | L26: 0 | M26: 0 | N26: 0 | V26: =IF(A26="m",VLOOKUP(P26,Berechnung_Male!$A$1:$D$42,AA26,TRUE),VLOOKUP(Eingabeblatt!P26,Berechnung_Female!$A$1:$D$42,AA26,TRUE)) -> 
H27: 0 | L27: 0 | M27: 0 | N27: 0 | V27: =IF(A27="m",VLOOKUP(P27,Berechnung_Male!$A$1:$D$42,AA27,TRUE),VLOOKUP(Eingabeblatt!P27,Berechnung_Female!$A$1:$D$42,AA27,TRUE)) -> 
H28: 0 | L28: 0 | M28: 0 | N28: 0 | V28: =IF(A28="m",VLOOKUP(P28,Berechnung_Male!$A$1:$D$42,AA28,TRUE),VLOOKUP(Eingabeblatt!P28,Berechnung_Female!$A$1:$D$42,AA28,TRUE)) -> 
H29: 0 | L29: 0 | M29: 0 | N29: 0 | V29: =IF(A29="m",VLOOKUP(P29,Berechnung_Male!$A$1:$D$42,AA29,TRUE),VLOOKUP(Eingabeblatt!P29,Berechnung_Female!$A$1:$D$42,AA29,TRUE)) -> 
H30: 0 | L30: 0 | M30: 0 | N30: 0 | V30: =IF(A30="m",VLOOKUP(P30,Berechnung_Male!$A$1:$D$42,AA30,TRUE),VLOOKUP(Eingabeblatt!P30,Berechnung_Female!$A$1:$D$42,AA30,TRUE)) -> 
H31: 0 | L31: 0 | M31: 0 | N31: 0 | V31: =IF(A31="m",VLOOKUP(P31,Berechnung_Male!$A$1:$D$42,AA31,TRUE),VLOOKUP(Eingabeblatt!P31,Berechnung_Female!$A$1:$D$42,AA31,TRUE)) -> 
H32: 0 | L32: 0 | M32: 0 | N32: 0 | V32: =IF(A32="m",VLOOKUP(P32,Berechnung_Male!$A$1:$D$42,AA32,TRUE),VLOOKUP(Eingabeblatt!P32,Berechnung_Female!$A$1:$D$42,AA32,TRUE)) -> 
H33: 0 | L33: 0 | M33: 0 | N33: 0 | V33: =IF(A33="m",VLOOKUP(P33,Berechnung_Male!$A$1:$D$42,AA33,TRUE),VLOOKUP(Eingabeblatt!P33,Berechnung_Female!$A$1:$D$42,AA33,TRUE)) -> 
H34: 0 | L34: 0 | M34: 0 | N34: 0 | V34: =IF(A34="m",VLOOKUP(P34,Berechnung_Male!$A$1:$D$42,AA34,TRUE),VLOOKUP(Eingabeblatt!P34,Berechnung_Female!$A$1:$D$42,AA34,TRUE)) -> 
H35: 0 | L35: 0 | M35: 0 | N35: 0 | V35: =IF(A35="m",VLOOKUP(P35,Berechnung_Male!$A$1:$D$42,AA35,TRUE),VLOOKUP(Eingabeblatt!P35,Berechnung_Female!$A$1:$D$42,AA35,TRUE)) -> 
H36: 0 | L36: 0 | M36: 0 | N36: 0 | V36: =IF(A36="m",VLOOKUP(P36,Berechnung_Male!$A$1:$D$42,AA36,TRUE),VLOOKUP(Eingabeblatt!P36,Berechnung_Female!$A$1:$D$42,AA36,TRUE)) -> 
H37: 0 | L37: 0 | M37: 0 | N37: 0 | V37: =IF(A37="m",VLOOKUP(P37,Berechnung_Male!$A$1:$D$42,AA37,TRUE),VLOOKUP(Eingabeblatt!P37,Berechnung_Female!$A$1:$D$42,AA37,TRUE)) -> 
H38: 0 | L38: 0 | M38: 0 | N38: 0 | V38: =IF(A38="m",VLOOKUP(P38,Berechnung_Male!$A$1:$D$42,AA38,TRUE),VLOOKUP(Eingabeblatt!P38,Berechnung_Female!$A$1:$D$42,AA38,TRUE)) -> 
H39: 0 | L39: 0 | M39: 0 | N39: 0 | V39: =IF(A39="m",VLOOKUP(P39,Berechnung_Male!$A$1:$D$42,AA39,TRUE),VLOOKUP(Eingabeblatt!P39,Berechnung_Female!$A$1:$D$42,AA39,TRUE)) -> 
H40: 0 | L40: 0 | M40: 0 | N40: 0 | V40: =IF(A40="m",VLOOKUP(P40,Berechnung_Male!$A$1:$D$42,AA40,TRUE),VLOOKUP(Eingabeblatt!P40,Berechnung_Female!$A$1:$D$42,AA40,TRUE)) -> 
H41: 0 | L41: 0 | M41: 0 | N41: 0 | V41: =IF(A41="m",VLOOKUP(P41,Berechnung_Male!$A$1:$D$42,AA41,TRUE),VLOOKUP(Eingabeblatt!P41,Berechnung_Female!$A$1:$D$42,AA41,TRUE)) -> 
H42: 0 | L42: 0 | M42: 0 | N42: 0 | V42: =IF(A42="m",VLOOKUP(P42,Berechnung_Male!$A$1:$D$42,AA42,TRUE),VLOOKUP(Eingabeblatt!P42,Berechnung_Female!$A$1:$D$42,AA42,TRUE)) -> 
H43: 0 | L43: 0 | M43: 0 | N43: 0 | V43: =IF(A43="m",VLOOKUP(P43,Berechnung_Male!$A$1:$D$42,AA43,TRUE),VLOOKUP(Eingabeblatt!P43,Berechnung_Female!$A$1:$D$42,AA43,TRUE)) -> 
H44: 0 | L44: 0 | M44: 0 | N44: 0 | V44: =IF(A44="m",VLOOKUP(P44,Berechnung_Male!$A$1:$D$42,AA44,TRUE),VLOOKUP(Eingabeblatt!P44,Berechnung_Female!$A$1:$D$42,AA44,TRUE)) -> 
H45: 0 | L45: 0 | M45: 0 | N45: 0 | V45: =IF(A45="m",VLOOKUP(P45,Berechnung_Male!$A$1:$D$42,AA45,TRUE),VLOOKUP(Eingabeblatt!P45,Berechnung_Female!$A$1:$D$42,AA45,TRUE)) -> 
H46: 0 | L46: 0 | M46: 0 | N46: 0 | V46: =IF(A46="m",VLOOKUP(P46,Berechnung_Male!$A$1:$D$42,AA46,TRUE),VLOOKUP(Eingabeblatt!P46,Berechnung_Female!$A$1:$D$42,AA46,TRUE)) -> 
H47: 0 | L47: 0 | M47: 0 | N47: 0 | V47: =IF(A47="m",VLOOKUP(P47,Berechnung_Male!$A$1:$D$42,AA47,TRUE),VLOOKUP(Eingabeblatt!P47,Berechnung_Female!$A$1:$D$42,AA47,TRUE)) -> 
H48: 0 | L48: 0 | M48: 0 | N48: 0 | V48: =IF(A48="m",VLOOKUP(P48,Berechnung_Male!$A$1:$D$42,AA48,TRUE),VLOOKUP(Eingabeblatt!P48,Berechnung_Female!$A$1:$D$42,AA48,TRUE)) -> 
H49: 0 | L49: 0 | M49: 0 | N49: 0 | V49: =IF(A49="m",VLOOKUP(P49,Berechnung_Male!$A$1:$D$42,AA49,TRUE),VLOOKUP(Eingabeblatt!P49,Berechnung_Female!$A$1:$D$42,AA49,TRUE)) -> 
H50: 0 | L50: 0 | M50: 0 | N50: 0 | V50: =IF(A50="m",VLOOKUP(P50,Berechnung_Male!$A$1:$D$42,AA50,TRUE),VLOOKUP(Eingabeblatt!P50,Berechnung_Female!$A$1:$D$42,AA50,TRUE)) -> 
H51: 0 | L51: 0 | M51: 0 | N51: 0 | V51: =IF(A51="m",VLOOKUP(P51,Berechnung_Male!$A$1:$D$42,AA51,TRUE),VLOOKUP(Eingabeblatt!P51,Berechnung_Female!$A$1:$D$42,AA51,TRUE)) -> 
H52: 0 | L52: 0 | M52: 0 | N52: 0 | V52: =IF(A52="m",VLOOKUP(P52,Berechnung_Male!$A$1:$D$42,AA52,TRUE),VLOOKUP(Eingabeblatt!P52,Berechnung_Female!$A$1:$D$42,AA52,TRUE)) -> 
H53: 0 | L53: 0 | M53: 0 | N53: 0 | V53: =IF(A53="m",VLOOKUP(P53,Berechnung_Male!$A$1:$D$42,AA53,TRUE),VLOOKUP(Eingabeblatt!P53,Berechnung_Female!$A$1:$D$42,AA53,TRUE)) -> 
H54: 0 | L54: 0 | M54: 0 | N54: 0 | V54: =IF(A54="m",VLOOKUP(P54,Berechnung_Male!$A$1:$D$42,AA54,TRUE),VLOOKUP(Eingabeblatt!P54,Berechnung_Female!$A$1:$D$42,AA54,TRUE)) -> 
H55: 0 | L55: 0 | M55: 0 | N55: 0 | V55: =IF(A55="m",VLOOKUP(P55,Berechnung_Male!$A$1:$D$42,AA55,TRUE),VLOOKUP(Eingabeblatt!P55,Berechnung_Female!$A$1:$D$42,AA55,TRUE)) -> 
H56: 0 | L56: 0 | M56: 0 | N56: 0 | V56: =IF(A56="m",VLOOKUP(P56,Berechnung_Male!$A$1:$D$42,AA56,TRUE),VLOOKUP(Eingabeblatt!P56,Berechnung_Female!$A$1:$D$42,AA56,TRUE)) -> 
H57: 0 | L57: 0 | M57: 0 | N57: 0 | V57: =IF(A57="m",VLOOKUP(P57,Berechnung_Male!$A$1:$D$42,AA57,TRUE),VLOOKUP(Eingabeblatt!P57,Berechnung_Female!$A$1:$D$42,AA57,TRUE)) -> 
H58: 0 | L58: 0 | M58: 0 | N58: 0 | V58: =IF(A58="m",VLOOKUP(P58,Berechnung_Male!$A$1:$D$42,AA58,TRUE),VLOOKUP(Eingabeblatt!P58,Berechnung_Female!$A$1:$D$42,AA58,TRUE)) -> 
H59: 0 | L59: 0 | M59: 0 | N59: 0 | V59: =IF(A59="m",VLOOKUP(P59,Berechnung_Male!$A$1:$D$42,AA59,TRUE),VLOOKUP(Eingabeblatt!P59,Berechnung_Female!$A$1:$D$42,AA59,TRUE)) -> 
H60: 0 | L60: 0 | M60: 0 | N60: 0 | V60: =IF(A60="m",VLOOKUP(P60,Berechnung_Male!$A$1:$D$42,AA60,TRUE),VLOOKUP(Eingabeblatt!P60,Berechnung_Female!$A$1:$D$42,AA60,TRUE)) -> 
H61: 0 | L61: 0 | M61: 0 | N61: 0 | V61: =IF(A61="m",VLOOKUP(P61,Berechnung_Male!$A$1:$D$42,AA61,TRUE),VLOOKUP(Eingabeblatt!P61,Berechnung_Female!$A$1:$D$42,AA61,TRUE)) -> 
H62: 0 | L62: 0 | M62: 0 | N62: 0 | V62: =IF(A62="m",VLOOKUP(P62,Berechnung_Male!$A$1:$D$42,AA62,TRUE),VLOOKUP(Eingabeblatt!P62,Berechnung_Female!$A$1:$D$42,AA62,TRUE)) -> 
H63: 0 | L63: 0 | M63: 0 | N63: 0 | V63: =IF(A63="m",VLOOKUP(P63,Berechnung_Male!$A$1:$D$42,AA63,TRUE),VLOOKUP(Eingabeblatt!P63,Berechnung_Female!$A$1:$D$42,AA63,TRUE)) -> 
H64: 0 | L64: 0 | M64: 0 | N64: 0 | V64: =IF(A64="m",VLOOKUP(P64,Berechnung_Male!$A$1:$D$42,AA64,TRUE),VLOOKUP(Eingabeblatt!P64,Berechnung_Female!$A$1:$D$42,AA64,TRUE)) -> 
H65: 0 | L65: 0 | M65: 0 | N65: 0 | V65: =IF(A65="m",VLOOKUP(P65,Berechnung_Male!$A$1:$D$42,AA65,TRUE),VLOOKUP(Eingabeblatt!P65,Berechnung_Female!$A$1:$D$42,AA65,TRUE)) -> 
H66: 0 | L66: 0 | M66: 0 | N66: 0 | V66: =IF(A66="m",VLOOKUP(P66,Berechnung_Male!$A$1:$D$42,AA66,TRUE),VLOOKUP(Eingabeblatt!P66,Berechnung_Female!$A$1:$D$42,AA66,TRUE)) -> 
H67: 0 | L67: 0 | M67: 0 | N67: 0 | V67: =IF(A67="m",VLOOKUP(P67,Berechnung_Male!$A$1:$D$42,AA67,TRUE),VLOOKUP(Eingabeblatt!P67,Berechnung_Female!$A$1:$D$42,AA67,TRUE)) -> 
H68: 0 | L68: 0 | M68: 0 | N68: 0 | V68: =IF(A68="m",VLOOKUP(P68,Berechnung_Male!$A$1:$D$42,AA68,TRUE),VLOOKUP(Eingabeblatt!P68,Berechnung_Female!$A$1:$D$42,AA68,TRUE)) -> 
H69: 0 | L69: 0 | M69: 0 | N69: 0 | S69: =IF(A69="m",(IF(O69<12.8,1,IF(O69<13.3,2,IF(O69>14.8,5,IF(O69>14.3,4,3))))),(IF(O69<11,1,IF(O69<11.5,2,IF(O69>13,5,IF(O69>12.5,4,3)))))) ->  | V69: =IF(A69="m",VLOOKUP(P69,Berechnung_Male!$A$1:$D$42,AA69,TRUE),VLOOKUP(Eingabeblatt!P69,Berechnung_Female!$A$1:$D$42,AA69,TRUE)) ->  | AA69: =IF(A69="m",IF(O69<12.8,2,IF(O69<14.8,3,4)),IF(O69<11,2,IF(O69<13,3,4))) -> 
H70: =F70-G70 -> 0 | L70: =J70-K70 -> 0 | M70: =I70-L70 -> 0 | N70: =(B70-E70)/365.25 -> 0 | O70: =N70-P70 ->  | P70: =IF(A70="m",(-9.236+(0.0002708*M70*L70)+(-0.001663*N70*M70)+(0.007216*N70*L70)+(0.02292*H70/I70*100)),(-9.376+(0.0001882*M70*L70)+(0.0022*N70*M70)+(0.005841*N70*L70)-(0.002658*N70*H70)+(0.07693*(H70/I70)*100))) ->  | Q70: =IF(R70=1,"Früh / précoce",IF(R70=2,"Durchschnittlich / Normal","Spät / Tardif")) ->  | R70: =IF(A70="m",(IF(O70<12.8,1,IF(O70>14.8,3,2))),(IF(O70<11,1,IF(O70>13,3,2)))) ->  | T70: =IF(S70=1,"Früh / précoce",IF(S70=2,"Möglicherweise Früh / éventuellement précoce", IF(S70=3,"Durchschnittlich / Normal",IF(S70=4,"Möglicherweise spät / éventuellement tardif","Spät / Tardif")))) ->  | U70: =I70+V70 ->  | V70: =IF(A70="m",VLOOKUP(P70,Berechnung_Male!$A$1:$D$42,AA70,TRUE),VLOOKUP(Eingabeblatt!P70,Berechnung_Female!$A$1:$D$42,AA70,TRUE)) ->  | W70: =I70/U70 -> 
H71: 0 | L71: 0 | M71: 0 | N71: 0 | V71: =IF(A71="m",VLOOKUP(P71,Berechnung_Male!$A$1:$D$42,AA71,TRUE),VLOOKUP(Eingabeblatt!P71,Berechnung_Female!$A$1:$D$42,AA71,TRUE)) -> 
H72: 0 | L72: 0 | M72: 0 | N72: 0 | V72: =IF(A72="m",VLOOKUP(P72,Berechnung_Male!$A$1:$D$42,AA72,TRUE),VLOOKUP(Eingabeblatt!P72,Berechnung_Female!$A$1:$D$42,AA72,TRUE)) -> 
H73: 0 | L73: 0 | M73: 0 | N73: 0 | V73: =IF(A73="m",VLOOKUP(P73,Berechnung_Male!$A$1:$D$42,AA73,TRUE),VLOOKUP(Eingabeblatt!P73,Berechnung_Female!$A$1:$D$42,AA73,TRUE)) -> 
H74: 0 | L74: 0 | M74: 0 | N74: 0 | V74: =IF(A74="m",VLOOKUP(P74,Berechnung_Male!$A$1:$D$42,AA74,TRUE),VLOOKUP(Eingabeblatt!P74,Berechnung_Female!$A$1:$D$42,AA74,TRUE)) -> 
H75: 0 | L75: 0 | M75: 0 | N75: 0 | V75: =IF(A75="m",VLOOKUP(P75,Berechnung_Male!$A$1:$D$42,AA75,TRUE),VLOOKUP(Eingabeblatt!P75,Berechnung_Female!$A$1:$D$42,AA75,TRUE)) -> 
H76: 0 | L76: 0 | M76: 0 | N76: 0 | V76: =IF(A76="m",VLOOKUP(P76,Berechnung_Male!$A$1:$D$42,AA76,TRUE),VLOOKUP(Eingabeblatt!P76,Berechnung_Female!$A$1:$D$42,AA76,TRUE)) -> 
H77: 0 | L77: 0 | M77: 0 | N77: 0 | V77: =IF(A77="m",VLOOKUP(P77,Berechnung_Male!$A$1:$D$42,AA77,TRUE),VLOOKUP(Eingabeblatt!P77,Berechnung_Female!$A$1:$D$42,AA77,TRUE)) -> 
H78: 0 | L78: 0 | M78: 0 | N78: 0 | V78: =IF(A78="m",VLOOKUP(P78,Berechnung_Male!$A$1:$D$42,AA78,TRUE),VLOOKUP(Eingabeblatt!P78,Berechnung_Female!$A$1:$D$42,AA78,TRUE)) -> 
H79: 0 | L79: 0 | M79: 0 | N79: 0 | V79: =IF(A79="m",VLOOKUP(P79,Berechnung_Male!$A$1:$D$42,AA79,TRUE),VLOOKUP(Eingabeblatt!P79,Berechnung_Female!$A$1:$D$42,AA79,TRUE)) -> 
H80: 0 | L80: 0 | M80: 0 | N80: 0 | V80: =IF(A80="m",VLOOKUP(P80,Berechnung_Male!$A$1:$D$42,AA80,TRUE),VLOOKUP(Eingabeblatt!P80,Berechnung_Female!$A$1:$D$42,AA80,TRUE)) -> 
H81: 0 | L81: 0 | M81: 0 | N81: 0 | V81: =IF(A81="m",VLOOKUP(P81,Berechnung_Male!$A$1:$D$42,AA81,TRUE),VLOOKUP(Eingabeblatt!P81,Berechnung_Female!$A$1:$D$42,AA81,TRUE)) -> 
H82: 0 | L82: 0 | M82: 0 | N82: 0 | V82: =IF(A82="m",VLOOKUP(P82,Berechnung_Male!$A$1:$D$42,AA82,TRUE),VLOOKUP(Eingabeblatt!P82,Berechnung_Female!$A$1:$D$42,AA82,TRUE)) -> 
H83: 0 | L83: 0 | M83: 0 | N83: 0 | V83: =IF(A83="m",VLOOKUP(P83,Berechnung_Male!$A$1:$D$42,AA83,TRUE),VLOOKUP(Eingabeblatt!P83,Berechnung_Female!$A$1:$D$42,AA83,TRUE)) -> 
H84: 0 | L84: 0 | M84: 0 | N84: 0 | V84: =IF(A84="m",VLOOKUP(P84,Berechnung_Male!$A$1:$D$42,AA84,TRUE),VLOOKUP(Eingabeblatt!P84,Berechnung_Female!$A$1:$D$42,AA84,TRUE)) -> 
H85: 0 | L85: 0 | M85: 0 | N85: 0 | V85: =IF(A85="m",VLOOKUP(P85,Berechnung_Male!$A$1:$D$42,AA85,TRUE),VLOOKUP(Eingabeblatt!P85,Berechnung_Female!$A$1:$D$42,AA85,TRUE)) -> 
H86: 0 | L86: 0 | M86: 0 | N86: 0 | V86: =IF(A86="m",VLOOKUP(P86,Berechnung_Male!$A$1:$D$42,AA86,TRUE),VLOOKUP(Eingabeblatt!P86,Berechnung_Female!$A$1:$D$42,AA86,TRUE)) -> 
H87: 0 | L87: 0 | M87: 0 | N87: 0 | V87: =IF(A87="m",VLOOKUP(P87,Berechnung_Male!$A$1:$D$42,AA87,TRUE),VLOOKUP(Eingabeblatt!P87,Berechnung_Female!$A$1:$D$42,AA87,TRUE)) -> 
H88: 0 | L88: 0 | M88: 0 | N88: 0 | V88: =IF(A88="m",VLOOKUP(P88,Berechnung_Male!$A$1:$D$42,AA88,TRUE),VLOOKUP(Eingabeblatt!P88,Berechnung_Female!$A$1:$D$42,AA88,TRUE)) -> 
H89: 0 | L89: 0 | M89: 0 | N89: 0 | V89: =IF(A89="m",VLOOKUP(P89,Berechnung_Male!$A$1:$D$42,AA89,TRUE),VLOOKUP(Eingabeblatt!P89,Berechnung_Female!$A$1:$D$42,AA89,TRUE)) -> 
H90: 0 | L90: 0 | M90: 0 | N90: 0 | V90: =IF(A90="m",VLOOKUP(P90,Berechnung_Male!$A$1:$D$42,AA90,TRUE),VLOOKUP(Eingabeblatt!P90,Berechnung_Female!$A$1:$D$42,AA90,TRUE)) -> 
H91: 0 | L91: 0 | M91: 0 | N91: 0 | V91: =IF(A91="m",VLOOKUP(P91,Berechnung_Male!$A$1:$D$42,AA91,TRUE),VLOOKUP(Eingabeblatt!P91,Berechnung_Female!$A$1:$D$42,AA91,TRUE)) -> 
H92: 0 | L92: 0 | M92: 0 | N92: 0 | V92: =IF(A92="m",VLOOKUP(P92,Berechnung_Male!$A$1:$D$42,AA92,TRUE),VLOOKUP(Eingabeblatt!P92,Berechnung_Female!$A$1:$D$42,AA92,TRUE)) -> 
H93: 0 | L93: 0 | M93: 0 | N93: 0 | V93: =IF(A93="m",VLOOKUP(P93,Berechnung_Male!$A$1:$D$42,AA93,TRUE),VLOOKUP(Eingabeblatt!P93,Berechnung_Female!$A$1:$D$42,AA93,TRUE)) -> 
H94: 0 | L94: 0 | M94: 0 | N94: 0 | V94: =IF(A94="m",VLOOKUP(P94,Berechnung_Male!$A$1:$D$42,AA94,TRUE),VLOOKUP(Eingabeblatt!P94,Berechnung_Female!$A$1:$D$42,AA94,TRUE)) -> 
H95: 0 | L95: 0 | M95: 0 | N95: 0 | V95: =IF(A95="m",VLOOKUP(P95,Berechnung_Male!$A$1:$D$42,AA95,TRUE),VLOOKUP(Eingabeblatt!P95,Berechnung_Female!$A$1:$D$42,AA95,TRUE)) -> 
H96: 0 | L96: 0 | M96: 0 | N96: 0 | V96: =IF(A96="m",VLOOKUP(P96,Berechnung_Male!$A$1:$D$42,AA96,TRUE),VLOOKUP(Eingabeblatt!P96,Berechnung_Female!$A$1:$D$42,AA96,TRUE)) -> 
H97: 0 | L97: 0 | M97: 0 | N97: 0 | V97: =IF(A97="m",VLOOKUP(P97,Berechnung_Male!$A$1:$D$42,AA97,TRUE),VLOOKUP(Eingabeblatt!P97,Berechnung_Female!$A$1:$D$42,AA97,TRUE)) -> 
H98: 0 | L98: 0 | M98: 0 | N98: 0 | V98: =IF(A98="m",VLOOKUP(P98,Berechnung_Male!$A$1:$D$42,AA98,TRUE),VLOOKUP(Eingabeblatt!P98,Berechnung_Female!$A$1:$D$42,AA98,TRUE)) -> 
H99: 0 | L99: 0 | M99: 0 | N99: 0 | V99: =IF(A99="m",VLOOKUP(P99,Berechnung_Male!$A$1:$D$42,AA99,TRUE),VLOOKUP(Eingabeblatt!P99,Berechnung_Female!$A$1:$D$42,AA99,TRUE)) -> 
H100: 0 | L100: 0 | M100: 0 | N100: 0 | V100: =IF(A100="m",VLOOKUP(P100,Berechnung_Male!$A$1:$D$42,AA100,TRUE),VLOOKUP(Eingabeblatt!P100,Berechnung_Female!$A$1:$D$42,AA100,TRUE)) -> 
H101: 0 | L101: 0 | M101: 0 | N101: 0 | V101: =IF(A101="m",VLOOKUP(P101,Berechnung_Male!$A$1:$D$42,AA101,TRUE),VLOOKUP(Eingabeblatt!P101,Berechnung_Female!$A$1:$D$42,AA101,TRUE)) -> 
H102: 0 | L102: 0 | M102: 0 | N102: 0 | V102: =IF(A102="m",VLOOKUP(P102,Berechnung_Male!$A$1:$D$42,AA102,TRUE),VLOOKUP(Eingabeblatt!P102,Berechnung_Female!$A$1:$D$42,AA102,TRUE)) -> 
H103: 0 | L103: 0 | M103: 0 | N103: 0 | V103: =IF(A103="m",VLOOKUP(P103,Berechnung_Male!$A$1:$D$42,AA103,TRUE),VLOOKUP(Eingabeblatt!P103,Berechnung_Female!$A$1:$D$42,AA103,TRUE)) -> 
H104: 0 | L104: 0 | M104: 0 | N104: 0 | V104: =IF(A104="m",VLOOKUP(P104,Berechnung_Male!$A$1:$D$42,AA104,TRUE),VLOOKUP(Eingabeblatt!P104,Berechnung_Female!$A$1:$D$42,AA104,TRUE)) -> 
H105: 0 | L105: 0 | M105: 0 | N105: 0 | V105: =IF(A105="m",VLOOKUP(P105,Berechnung_Male!$A$1:$D$42,AA105,TRUE),VLOOKUP(Eingabeblatt!P105,Berechnung_Female!$A$1:$D$42,AA105,TRUE)) -> 
H106: 0 | L106: 0 | M106: 0 | N106: 0 | V106: =IF(A106="m",VLOOKUP(P106,Berechnung_Male!$A$1:$D$42,AA106,TRUE),VLOOKUP(Eingabeblatt!P106,Berechnung_Female!$A$1:$D$42,AA106,TRUE)) -> 
H107: 0 | L107: 0 | M107: 0 | N107: 0 | V107: =IF(A107="m",VLOOKUP(P107,Berechnung_Male!$A$1:$D$42,AA107,TRUE),VLOOKUP(Eingabeblatt!P107,Berechnung_Female!$A$1:$D$42,AA107,TRUE)) -> 
H108: 0 | L108: 0 | M108: 0 | N108: 0 | V108: =IF(A108="m",VLOOKUP(P108,Berechnung_Male!$A$1:$D$42,AA108,TRUE),VLOOKUP(Eingabeblatt!P108,Berechnung_Female!$A$1:$D$42,AA108,TRUE)) -> 
H109: 0 | L109: 0 | M109: 0 | N109: 0 | V109: =IF(A109="m",VLOOKUP(P109,Berechnung_Male!$A$1:$D$42,AA109,TRUE),VLOOKUP(Eingabeblatt!P109,Berechnung_Female!$A$1:$D$42,AA109,TRUE)) -> 
H110: 0 | L110: 0 | M110: 0 | N110: 0 | V110: =IF(A110="m",VLOOKUP(P110,Berechnung_Male!$A$1:$D$42,AA110,TRUE),VLOOKUP(Eingabeblatt!P110,Berechnung_Female!$A$1:$D$42,AA110,TRUE)) -> 
H111: 0 | L111: 0 | M111: 0 | N111: 0 | V111: =IF(A111="m",VLOOKUP(P111,Berechnung_Male!$A$1:$D$42,AA111,TRUE),VLOOKUP(Eingabeblatt!P111,Berechnung_Female!$A$1:$D$42,AA111,TRUE)) -> 
H112: 0 | L112: 0 | M112: 0 | N112: 0 | V112: =IF(A112="m",VLOOKUP(P112,Berechnung_Male!$A$1:$D$42,AA112,TRUE),VLOOKUP(Eingabeblatt!P112,Berechnung_Female!$A$1:$D$42,AA112,TRUE)) -> 
H113: 0 | L113: 0 | M113: 0 | N113: 0 | V113: =IF(A113="m",VLOOKUP(P113,Berechnung_Male!$A$1:$D$42,AA113,TRUE),VLOOKUP(Eingabeblatt!P113,Berechnung_Female!$A$1:$D$42,AA113,TRUE)) -> 
H114: 0 | L114: 0 | M114: 0 | N114: 0 | V114: =IF(A114="m",VLOOKUP(P114,Berechnung_Male!$A$1:$D$42,AA114,TRUE),VLOOKUP(Eingabeblatt!P114,Berechnung_Female!$A$1:$D$42,AA114,TRUE)) -> 
H115: 0 | L115: 0 | M115: 0 | N115: 0 | V115: =IF(A115="m",VLOOKUP(P115,Berechnung_Male!$A$1:$D$42,AA115,TRUE),VLOOKUP(Eingabeblatt!P115,Berechnung_Female!$A$1:$D$42,AA115,TRUE)) -> 
H116: 0 | L116: 0 | M116: 0 | N116: 0 | V116: =IF(A116="m",VLOOKUP(P116,Berechnung_Male!$A$1:$D$42,AA116,TRUE),VLOOKUP(Eingabeblatt!P116,Berechnung_Female!$A$1:$D$42,AA116,TRUE)) -> 
H117: 0 | L117: 0 | M117: 0 | N117: 0 | V117: =IF(A117="m",VLOOKUP(P117,Berechnung_Male!$A$1:$D$42,AA117,TRUE),VLOOKUP(Eingabeblatt!P117,Berechnung_Female!$A$1:$D$42,AA117,TRUE)) -> 
H118: 0 | L118: 0 | M118: 0 | N118: 0 | V118: =IF(A118="m",VLOOKUP(P118,Berechnung_Male!$A$1:$D$42,AA118,TRUE),VLOOKUP(Eingabeblatt!P118,Berechnung_Female!$A$1:$D$42,AA118,TRUE)) -> 
H119: 0 | L119: 0 | M119: 0 | N119: 0 | V119: =IF(A119="m",VLOOKUP(P119,Berechnung_Male!$A$1:$D$42,AA119,TRUE),VLOOKUP(Eingabeblatt!P119,Berechnung_Female!$A$1:$D$42,AA119,TRUE)) -> 
H120: 0 | L120: 0 | M120: 0 | N120: 0 | V120: =IF(A120="m",VLOOKUP(P120,Berechnung_Male!$A$1:$D$42,AA120,TRUE),VLOOKUP(Eingabeblatt!P120,Berechnung_Female!$A$1:$D$42,AA120,TRUE)) -> 
H121: 0 | L121: 0 | M121: 0 | N121: 0 | V121: =IF(A121="m",VLOOKUP(P121,Berechnung_Male!$A$1:$D$42,AA121,TRUE),VLOOKUP(Eingabeblatt!P121,Berechnung_Female!$A$1:$D$42,AA121,TRUE)) -> 
H122: 0 | L122: 0 | M122: 0 | N122: 0 | V122: =IF(A122="m",VLOOKUP(P122,Berechnung_Male!$A$1:$D$42,AA122,TRUE),VLOOKUP(Eingabeblatt!P122,Berechnung_Female!$A$1:$D$42,AA122,TRUE)) -> 
H123: 0 | L123: 0 | M123: 0 | N123: 0 | V123: =IF(A123="m",VLOOKUP(P123,Berechnung_Male!$A$1:$D$42,AA123,TRUE),VLOOKUP(Eingabeblatt!P123,Berechnung_Female!$A$1:$D$42,AA123,TRUE)) -> 
H124: 0 | L124: 0 | M124: 0 | N124: 0 | V124: =IF(A124="m",VLOOKUP(P124,Berechnung_Male!$A$1:$D$42,AA124,TRUE),VLOOKUP(Eingabeblatt!P124,Berechnung_Female!$A$1:$D$42,AA124,TRUE)) -> 
H125: 0 | L125: 0 | M125: 0 | N125: 0 | V125: =IF(A125="m",VLOOKUP(P125,Berechnung_Male!$A$1:$D$42,AA125,TRUE),VLOOKUP(Eingabeblatt!P125,Berechnung_Female!$A$1:$D$42,AA125,TRUE)) -> 
H126: 0 | L126: 0 | M126: 0 | N126: 0 | V126: =IF(A126="m",VLOOKUP(P126,Berechnung_Male!$A$1:$D$42,AA126,TRUE),VLOOKUP(Eingabeblatt!P126,Berechnung_Female!$A$1:$D$42,AA126,TRUE)) -> 
H127: 0 | L127: 0 | M127: 0 | N127: 0 | V127: =IF(A127="m",VLOOKUP(P127,Berechnung_Male!$A$1:$D$42,AA127,TRUE),VLOOKUP(Eingabeblatt!P127,Berechnung_Female!$A$1:$D$42,AA127,TRUE)) -> 
H128: 0 | L128: 0 | M128: 0 | N128: 0 | V128: =IF(A128="m",VLOOKUP(P128,Berechnung_Male!$A$1:$D$42,AA128,TRUE),VLOOKUP(Eingabeblatt!P128,Berechnung_Female!$A$1:$D$42,AA128,TRUE)) -> 
H129: 0 | L129: 0 | M129: 0 | N129: 0 | V129: =IF(A129="m",VLOOKUP(P129,Berechnung_Male!$A$1:$D$42,AA129,TRUE),VLOOKUP(Eingabeblatt!P129,Berechnung_Female!$A$1:$D$42,AA129,TRUE)) -> 
H130: 0 | L130: 0 | M130: 0 | N130: 0 | V130: =IF(A130="m",VLOOKUP(P130,Berechnung_Male!$A$1:$D$42,AA130,TRUE),VLOOKUP(Eingabeblatt!P130,Berechnung_Female!$A$1:$D$42,AA130,TRUE)) -> 
H131: 0 | L131: 0 | M131: 0 | N131: 0 | V131: =IF(A131="m",VLOOKUP(P131,Berechnung_Male!$A$1:$D$42,AA131,TRUE),VLOOKUP(Eingabeblatt!P131,Berechnung_Female!$A$1:$D$42,AA131,TRUE)) -> 
H132: 0 | L132: 0 | M132: 0 | N132: 0 | V132: =IF(A132="m",VLOOKUP(P132,Berechnung_Male!$A$1:$D$42,AA132,TRUE),VLOOKUP(Eingabeblatt!P132,Berechnung_Female!$A$1:$D$42,AA132,TRUE)) -> 
H133: 0 | L133: 0 | M133: 0 | N133: 0 | S133: =IF(A133="m",(IF(O133<12.8,1,IF(O133<13.3,2,IF(O133>14.8,5,IF(O133>14.3,4,3))))),(IF(O133<11,1,IF(O133<11.5,2,IF(O133>13,5,IF(O133>12.5,4,3)))))) ->  | V133: =IF(A133="m",VLOOKUP(P133,Berechnung_Male!$A$1:$D$42,AA133,TRUE),VLOOKUP(Eingabeblatt!P133,Berechnung_Female!$A$1:$D$42,AA133,TRUE)) ->  | AA133: =IF(A133="m",IF(O133<12.8,2,IF(O133<14.8,3,4)),IF(O133<11,2,IF(O133<13,3,4))) -> 
H134: =F134-G134 -> 0 | L134: =J134-K134 -> 0 | M134: =I134-L134 -> 0 | N134: =(B134-E134)/365.25 -> 0 | O134: =N134-P134 ->  | P134: =IF(A134="m",(-9.236+(0.0002708*M134*L134)+(-0.001663*N134*M134)+(0.007216*N134*L134)+(0.02292*H134/I134*100)),(-9.376+(0.0001882*M134*L134)+(0.0022*N134*M134)+(0.005841*N134*L134)-(0.002658*N134*H134)+(0.07693*(H134/I134)*100))) ->  | Q134: =IF(R134=1,"Früh / précoce",IF(R134=2,"Durchschnittlich / Normal","Spät / Tardif")) ->  | R134: =IF(A134="m",(IF(O134<12.8,1,IF(O134>14.8,3,2))),(IF(O134<11,1,IF(O134>13,3,2)))) ->  | T134: =IF(S134=1,"Früh / précoce",IF(S134=2,"Möglicherweise Früh / éventuellement précoce", IF(S134=3,"Durchschnittlich / Normal",IF(S134=4,"Möglicherweise spät / éventuellement tardif","Spät / Tardif")))) ->  | U134: =I134+V134 ->  | V134: =IF(A134="m",VLOOKUP(P134,Berechnung_Male!$A$1:$D$42,AA134,TRUE),VLOOKUP(Eingabeblatt!P134,Berechnung_Female!$A$1:$D$42,AA134,TRUE)) ->  | W134: =I134/U134 -> 
H135: 0 | L135: 0 | M135: 0 | N135: 0 | V135: =IF(A135="m",VLOOKUP(P135,Berechnung_Male!$A$1:$D$42,AA135,TRUE),VLOOKUP(Eingabeblatt!P135,Berechnung_Female!$A$1:$D$42,AA135,TRUE)) -> 
H136: 0 | L136: 0 | M136: 0 | N136: 0 | V136: =IF(A136="m",VLOOKUP(P136,Berechnung_Male!$A$1:$D$42,AA136,TRUE),VLOOKUP(Eingabeblatt!P136,Berechnung_Female!$A$1:$D$42,AA136,TRUE)) -> 
H137: 0 | L137: 0 | M137: 0 | N137: 0 | V137: =IF(A137="m",VLOOKUP(P137,Berechnung_Male!$A$1:$D$42,AA137,TRUE),VLOOKUP(Eingabeblatt!P137,Berechnung_Female!$A$1:$D$42,AA137,TRUE)) -> 
H138: 0 | L138: 0 | M138: 0 | N138: 0 | V138: =IF(A138="m",VLOOKUP(P138,Berechnung_Male!$A$1:$D$42,AA138,TRUE),VLOOKUP(Eingabeblatt!P138,Berechnung_Female!$A$1:$D$42,AA138,TRUE)) -> 
H139: 0 | L139: 0 | M139: 0 | N139: 0 | V139: =IF(A139="m",VLOOKUP(P139,Berechnung_Male!$A$1:$D$42,AA139,TRUE),VLOOKUP(Eingabeblatt!P139,Berechnung_Female!$A$1:$D$42,AA139,TRUE)) -> 
H140: 0 | L140: 0 | M140: 0 | N140: 0 | V140: =IF(A140="m",VLOOKUP(P140,Berechnung_Male!$A$1:$D$42,AA140,TRUE),VLOOKUP(Eingabeblatt!P140,Berechnung_Female!$A$1:$D$42,AA140,TRUE)) -> 
H141: 0 | L141: 0 | M141: 0 | N141: 0 | V141: =IF(A141="m",VLOOKUP(P141,Berechnung_Male!$A$1:$D$42,AA141,TRUE),VLOOKUP(Eingabeblatt!P141,Berechnung_Female!$A$1:$D$42,AA141,TRUE)) -> 
H142: 0 | L142: 0 | M142: 0 | N142: 0 | V142: =IF(A142="m",VLOOKUP(P142,Berechnung_Male!$A$1:$D$42,AA142,TRUE),VLOOKUP(Eingabeblatt!P142,Berechnung_Female!$A$1:$D$42,AA142,TRUE)) -> 
H143: 0 | L143: 0 | M143: 0 | N143: 0 | V143: =IF(A143="m",VLOOKUP(P143,Berechnung_Male!$A$1:$D$42,AA143,TRUE),VLOOKUP(Eingabeblatt!P143,Berechnung_Female!$A$1:$D$42,AA143,TRUE)) -> 
H144: 0 | L144: 0 | M144: 0 | N144: 0 | V144: =IF(A144="m",VLOOKUP(P144,Berechnung_Male!$A$1:$D$42,AA144,TRUE),VLOOKUP(Eingabeblatt!P144,Berechnung_Female!$A$1:$D$42,AA144,TRUE)) -> 
H145: 0 | L145: 0 | M145: 0 | N145: 0 | V145: =IF(A145="m",VLOOKUP(P145,Berechnung_Male!$A$1:$D$42,AA145,TRUE),VLOOKUP(Eingabeblatt!P145,Berechnung_Female!$A$1:$D$42,AA145,TRUE)) -> 
H146: 0 | L146: 0 | M146: 0 | N146: 0 | V146: =IF(A146="m",VLOOKUP(P146,Berechnung_Male!$A$1:$D$42,AA146,TRUE),VLOOKUP(Eingabeblatt!P146,Berechnung_Female!$A$1:$D$42,AA146,TRUE)) -> 
H147: 0 | L147: 0 | M147: 0 | N147: 0 | V147: =IF(A147="m",VLOOKUP(P147,Berechnung_Male!$A$1:$D$42,AA147,TRUE),VLOOKUP(Eingabeblatt!P147,Berechnung_Female!$A$1:$D$42,AA147,TRUE)) -> 
H148: 0 | L148: 0 | M148: 0 | N148: 0 | V148: =IF(A148="m",VLOOKUP(P148,Berechnung_Male!$A$1:$D$42,AA148,TRUE),VLOOKUP(Eingabeblatt!P148,Berechnung_Female!$A$1:$D$42,AA148,TRUE)) -> 
H149: 0 | L149: 0 | M149: 0 | N149: 0 | V149: =IF(A149="m",VLOOKUP(P149,Berechnung_Male!$A$1:$D$42,AA149,TRUE),VLOOKUP(Eingabeblatt!P149,Berechnung_Female!$A$1:$D$42,AA149,TRUE)) -> 
H150: 0 | L150: 0 | M150: 0 | N150: 0 | V150: =IF(A150="m",VLOOKUP(P150,Berechnung_Male!$A$1:$D$42,AA150,TRUE),VLOOKUP(Eingabeblatt!P150,Berechnung_Female!$A$1:$D$42,AA150,TRUE)) -> 
H151: 0 | L151: 0 | M151: 0 | N151: 0 | V151: =IF(A151="m",VLOOKUP(P151,Berechnung_Male!$A$1:$D$42,AA151,TRUE),VLOOKUP(Eingabeblatt!P151,Berechnung_Female!$A$1:$D$42,AA151,TRUE)) -> 
H152: 0 | L152: 0 | M152: 0 | N152: 0 | V152: =IF(A152="m",VLOOKUP(P152,Berechnung_Male!$A$1:$D$42,AA152,TRUE),VLOOKUP(Eingabeblatt!P152,Berechnung_Female!$A$1:$D$42,AA152,TRUE)) -> 
H153: 0 | L153: 0 | M153: 0 | N153: 0 | V153: =IF(A153="m",VLOOKUP(P153,Berechnung_Male!$A$1:$D$42,AA153,TRUE),VLOOKUP(Eingabeblatt!P153,Berechnung_Female!$A$1:$D$42,AA153,TRUE)) -> 
H154: 0 | L154: 0 | M154: 0 | N154: 0 | V154: =IF(A154="m",VLOOKUP(P154,Berechnung_Male!$A$1:$D$42,AA154,TRUE),VLOOKUP(Eingabeblatt!P154,Berechnung_Female!$A$1:$D$42,AA154,TRUE)) -> 
H155: 0 | L155: 0 | M155: 0 | N155: 0 | V155: =IF(A155="m",VLOOKUP(P155,Berechnung_Male!$A$1:$D$42,AA155,TRUE),VLOOKUP(Eingabeblatt!P155,Berechnung_Female!$A$1:$D$42,AA155,TRUE)) -> 
H156: 0 | L156: 0 | M156: 0 | N156: 0 | V156: =IF(A156="m",VLOOKUP(P156,Berechnung_Male!$A$1:$D$42,AA156,TRUE),VLOOKUP(Eingabeblatt!P156,Berechnung_Female!$A$1:$D$42,AA156,TRUE)) -> 
H157: 0 | L157: 0 | M157: 0 | N157: 0 | V157: =IF(A157="m",VLOOKUP(P157,Berechnung_Male!$A$1:$D$42,AA157,TRUE),VLOOKUP(Eingabeblatt!P157,Berechnung_Female!$A$1:$D$42,AA157,TRUE)) -> 
H158: 0 | L158: 0 | M158: 0 | N158: 0 | V158: =IF(A158="m",VLOOKUP(P158,Berechnung_Male!$A$1:$D$42,AA158,TRUE),VLOOKUP(Eingabeblatt!P158,Berechnung_Female!$A$1:$D$42,AA158,TRUE)) -> 
H159: 0 | L159: 0 | M159: 0 | N159: 0 | V159: =IF(A159="m",VLOOKUP(P159,Berechnung_Male!$A$1:$D$42,AA159,TRUE),VLOOKUP(Eingabeblatt!P159,Berechnung_Female!$A$1:$D$42,AA159,TRUE)) -> 
H160: 0 | L160: 0 | M160: 0 | N160: 0 | V160: =IF(A160="m",VLOOKUP(P160,Berechnung_Male!$A$1:$D$42,AA160,TRUE),VLOOKUP(Eingabeblatt!P160,Berechnung_Female!$A$1:$D$42,AA160,TRUE)) -> 
H161: 0 | L161: 0 | M161: 0 | N161: 0 | V161: =IF(A161="m",VLOOKUP(P161,Berechnung_Male!$A$1:$D$42,AA161,TRUE),VLOOKUP(Eingabeblatt!P161,Berechnung_Female!$A$1:$D$42,AA161,TRUE)) -> 
H162: 0 | L162: 0 | M162: 0 | N162: 0 | V162: =IF(A162="m",VLOOKUP(P162,Berechnung_Male!$A$1:$D$42,AA162,TRUE),VLOOKUP(Eingabeblatt!P162,Berechnung_Female!$A$1:$D$42,AA162,TRUE)) -> 
H163: 0 | L163: 0 | M163: 0 | N163: 0 | V163: =IF(A163="m",VLOOKUP(P163,Berechnung_Male!$A$1:$D$42,AA163,TRUE),VLOOKUP(Eingabeblatt!P163,Berechnung_Female!$A$1:$D$42,AA163,TRUE)) -> 
H164: 0 | L164: 0 | M164: 0 | N164: 0 | V164: =IF(A164="m",VLOOKUP(P164,Berechnung_Male!$A$1:$D$42,AA164,TRUE),VLOOKUP(Eingabeblatt!P164,Berechnung_Female!$A$1:$D$42,AA164,TRUE)) -> 
H165: 0 | L165: 0 | M165: 0 | N165: 0 | V165: =IF(A165="m",VLOOKUP(P165,Berechnung_Male!$A$1:$D$42,AA165,TRUE),VLOOKUP(Eingabeblatt!P165,Berechnung_Female!$A$1:$D$42,AA165,TRUE)) -> 
H166: 0 | L166: 0 | M166: 0 | N166: 0 | V166: =IF(A166="m",VLOOKUP(P166,Berechnung_Male!$A$1:$D$42,AA166,TRUE),VLOOKUP(Eingabeblatt!P166,Berechnung_Female!$A$1:$D$42,AA166,TRUE)) -> 
H167: 0 | L167: 0 | M167: 0 | N167: 0 | V167: =IF(A167="m",VLOOKUP(P167,Berechnung_Male!$A$1:$D$42,AA167,TRUE),VLOOKUP(Eingabeblatt!P167,Berechnung_Female!$A$1:$D$42,AA167,TRUE)) -> 
H168: 0 | L168: 0 | M168: 0 | N168: 0 | V168: =IF(A168="m",VLOOKUP(P168,Berechnung_Male!$A$1:$D$42,AA168,TRUE),VLOOKUP(Eingabeblatt!P168,Berechnung_Female!$A$1:$D$42,AA168,TRUE)) -> 
H169: 0 | L169: 0 | M169: 0 | N169: 0 | V169: =IF(A169="m",VLOOKUP(P169,Berechnung_Male!$A$1:$D$42,AA169,TRUE),VLOOKUP(Eingabeblatt!P169,Berechnung_Female!$A$1:$D$42,AA169,TRUE)) -> 
H170: 0 | L170: 0 | M170: 0 | N170: 0 | V170: =IF(A170="m",VLOOKUP(P170,Berechnung_Male!$A$1:$D$42,AA170,TRUE),VLOOKUP(Eingabeblatt!P170,Berechnung_Female!$A$1:$D$42,AA170,TRUE)) -> 
H171: 0 | L171: 0 | M171: 0 | N171: 0 | V171: =IF(A171="m",VLOOKUP(P171,Berechnung_Male!$A$1:$D$42,AA171,TRUE),VLOOKUP(Eingabeblatt!P171,Berechnung_Female!$A$1:$D$42,AA171,TRUE)) -> 
H172: 0 | L172: 0 | M172: 0 | N172: 0 | V172: =IF(A172="m",VLOOKUP(P172,Berechnung_Male!$A$1:$D$42,AA172,TRUE),VLOOKUP(Eingabeblatt!P172,Berechnung_Female!$A$1:$D$42,AA172,TRUE)) -> 
H173: 0 | L173: 0 | M173: 0 | N173: 0 | V173: =IF(A173="m",VLOOKUP(P173,Berechnung_Male!$A$1:$D$42,AA173,TRUE),VLOOKUP(Eingabeblatt!P173,Berechnung_Female!$A$1:$D$42,AA173,TRUE)) -> 
H174: 0 | L174: 0 | M174: 0 | N174: 0 | V174: =IF(A174="m",VLOOKUP(P174,Berechnung_Male!$A$1:$D$42,AA174,TRUE),VLOOKUP(Eingabeblatt!P174,Berechnung_Female!$A$1:$D$42,AA174,TRUE)) -> 
H175: 0 | L175: 0 | M175: 0 | N175: 0 | V175: =IF(A175="m",VLOOKUP(P175,Berechnung_Male!$A$1:$D$42,AA175,TRUE),VLOOKUP(Eingabeblatt!P175,Berechnung_Female!$A$1:$D$42,AA175,TRUE)) -> 
H176: 0 | L176: 0 | M176: 0 | N176: 0 | V176: =IF(A176="m",VLOOKUP(P176,Berechnung_Male!$A$1:$D$42,AA176,TRUE),VLOOKUP(Eingabeblatt!P176,Berechnung_Female!$A$1:$D$42,AA176,TRUE)) -> 
H177: 0 | L177: 0 | M177: 0 | N177: 0 | V177: =IF(A177="m",VLOOKUP(P177,Berechnung_Male!$A$1:$D$42,AA177,TRUE),VLOOKUP(Eingabeblatt!P177,Berechnung_Female!$A$1:$D$42,AA177,TRUE)) -> 
H178: 0 | L178: 0 | M178: 0 | N178: 0 | V178: =IF(A178="m",VLOOKUP(P178,Berechnung_Male!$A$1:$D$42,AA178,TRUE),VLOOKUP(Eingabeblatt!P178,Berechnung_Female!$A$1:$D$42,AA178,TRUE)) -> 
H179: 0 | L179: 0 | M179: 0 | N179: 0 | V179: =IF(A179="m",VLOOKUP(P179,Berechnung_Male!$A$1:$D$42,AA179,TRUE),VLOOKUP(Eingabeblatt!P179,Berechnung_Female!$A$1:$D$42,AA179,TRUE)) -> 
H180: 0 | L180: 0 | M180: 0 | N180: 0 | V180: =IF(A180="m",VLOOKUP(P180,Berechnung_Male!$A$1:$D$42,AA180,TRUE),VLOOKUP(Eingabeblatt!P180,Berechnung_Female!$A$1:$D$42,AA180,TRUE)) -> 
H181: 0 | L181: 0 | M181: 0 | N181: 0 | V181: =IF(A181="m",VLOOKUP(P181,Berechnung_Male!$A$1:$D$42,AA181,TRUE),VLOOKUP(Eingabeblatt!P181,Berechnung_Female!$A$1:$D$42,AA181,TRUE)) -> 
H182: 0 | L182: 0 | M182: 0 | N182: 0 | V182: =IF(A182="m",VLOOKUP(P182,Berechnung_Male!$A$1:$D$42,AA182,TRUE),VLOOKUP(Eingabeblatt!P182,Berechnung_Female!$A$1:$D$42,AA182,TRUE)) -> 
H183: 0 | L183: 0 | M183: 0 | N183: 0 | V183: =IF(A183="m",VLOOKUP(P183,Berechnung_Male!$A$1:$D$42,AA183,TRUE),VLOOKUP(Eingabeblatt!P183,Berechnung_Female!$A$1:$D$42,AA183,TRUE)) -> 
H184: 0 | L184: 0 | M184: 0 | N184: 0 | V184: =IF(A184="m",VLOOKUP(P184,Berechnung_Male!$A$1:$D$42,AA184,TRUE),VLOOKUP(Eingabeblatt!P184,Berechnung_Female!$A$1:$D$42,AA184,TRUE)) -> 
H185: 0 | L185: 0 | M185: 0 | N185: 0 | V185: =IF(A185="m",VLOOKUP(P185,Berechnung_Male!$A$1:$D$42,AA185,TRUE),VLOOKUP(Eingabeblatt!P185,Berechnung_Female!$A$1:$D$42,AA185,TRUE)) -> 
H186: 0 | L186: 0 | M186: 0 | N186: 0 | V186: =IF(A186="m",VLOOKUP(P186,Berechnung_Male!$A$1:$D$42,AA186,TRUE),VLOOKUP(Eingabeblatt!P186,Berechnung_Female!$A$1:$D$42,AA186,TRUE)) -> 
H187: 0 | L187: 0 | M187: 0 | N187: 0 | V187: =IF(A187="m",VLOOKUP(P187,Berechnung_Male!$A$1:$D$42,AA187,TRUE),VLOOKUP(Eingabeblatt!P187,Berechnung_Female!$A$1:$D$42,AA187,TRUE)) -> 
H188: 0 | L188: 0 | M188: 0 | N188: 0 | V188: =IF(A188="m",VLOOKUP(P188,Berechnung_Male!$A$1:$D$42,AA188,TRUE),VLOOKUP(Eingabeblatt!P188,Berechnung_Female!$A$1:$D$42,AA188,TRUE)) -> 
H189: 0 | L189: 0 | M189: 0 | N189: 0 | V189: =IF(A189="m",VLOOKUP(P189,Berechnung_Male!$A$1:$D$42,AA189,TRUE),VLOOKUP(Eingabeblatt!P189,Berechnung_Female!$A$1:$D$42,AA189,TRUE)) -> 
H190: 0 | L190: 0 | M190: 0 | N190: 0 | V190: =IF(A190="m",VLOOKUP(P190,Berechnung_Male!$A$1:$D$42,AA190,TRUE),VLOOKUP(Eingabeblatt!P190,Berechnung_Female!$A$1:$D$42,AA190,TRUE)) -> 
H191: 0 | L191: 0 | M191: 0 | N191: 0 | V191: =IF(A191="m",VLOOKUP(P191,Berechnung_Male!$A$1:$D$42,AA191,TRUE),VLOOKUP(Eingabeblatt!P191,Berechnung_Female!$A$1:$D$42,AA191,TRUE)) -> 
H192: 0 | L192: 0 | M192: 0 | N192: 0 | V192: =IF(A192="m",VLOOKUP(P192,Berechnung_Male!$A$1:$D$42,AA192,TRUE),VLOOKUP(Eingabeblatt!P192,Berechnung_Female!$A$1:$D$42,AA192,TRUE)) -> 
H193: 0 | L193: 0 | M193: 0 | N193: 0 | V193: =IF(A193="m",VLOOKUP(P193,Berechnung_Male!$A$1:$D$42,AA193,TRUE),VLOOKUP(Eingabeblatt!P193,Berechnung_Female!$A$1:$D$42,AA193,TRUE)) -> 
H194: 0 | L194: 0 | M194: 0 | N194: 0 | V194: =IF(A194="m",VLOOKUP(P194,Berechnung_Male!$A$1:$D$42,AA194,TRUE),VLOOKUP(Eingabeblatt!P194,Berechnung_Female!$A$1:$D$42,AA194,TRUE)) -> 
H195: 0 | L195: 0 | M195: 0 | N195: 0 | V195: =IF(A195="m",VLOOKUP(P195,Berechnung_Male!$A$1:$D$42,AA195,TRUE),VLOOKUP(Eingabeblatt!P195,Berechnung_Female!$A$1:$D$42,AA195,TRUE)) -> 
H196: 0 | L196: 0 | M196: 0 | N196: 0 | V196: =IF(A196="m",VLOOKUP(P196,Berechnung_Male!$A$1:$D$42,AA196,TRUE),VLOOKUP(Eingabeblatt!P196,Berechnung_Female!$A$1:$D$42,AA196,TRUE)) -> 
H197: 0 | L197: 0 | M197: 0 | N197: 0 | S197: =IF(A197="m",(IF(O197<12.8,1,IF(O197<13.3,2,IF(O197>14.8,5,IF(O197>14.3,4,3))))),(IF(O197<11,1,IF(O197<11.5,2,IF(O197>13,5,IF(O197>12.5,4,3)))))) ->  | V197: =IF(A197="m",VLOOKUP(P197,Berechnung_Male!$A$1:$D$42,AA197,TRUE),VLOOKUP(Eingabeblatt!P197,Berechnung_Female!$A$1:$D$42,AA197,TRUE)) ->  | AA197: =IF(A197="m",IF(O197<12.8,2,IF(O197<14.8,3,4)),IF(O197<11,2,IF(O197<13,3,4))) -> 
H198: =F198-G198 -> 0 | L198: =J198-K198 -> 0 | M198: =I198-L198 -> 0 | N198: =(B198-E198)/365.25 -> 0 | O198: =N198-P198 ->  | P198: =IF(A198="m",(-9.236+(0.0002708*M198*L198)+(-0.001663*N198*M198)+(0.007216*N198*L198)+(0.02292*H198/I198*100)),(-9.376+(0.0001882*M198*L198)+(0.0022*N198*M198)+(0.005841*N198*L198)-(0.002658*N198*H198)+(0.07693*(H198/I198)*100))) ->  | Q198: =IF(R198=1,"Früh / précoce",IF(R198=2,"Durchschnittlich / Normal","Spät / Tardif")) ->  | R198: =IF(A198="m",(IF(O198<12.8,1,IF(O198>14.8,3,2))),(IF(O198<11,1,IF(O198>13,3,2)))) ->  | T198: =IF(S198=1,"Früh / précoce",IF(S198=2,"Möglicherweise Früh / éventuellement précoce", IF(S198=3,"Durchschnittlich / Normal",IF(S198=4,"Möglicherweise spät / éventuellement tardif","Spät / Tardif")))) ->  | U198: =I198+V198 ->  | V198: =IF(A198="m",VLOOKUP(P198,Berechnung_Male!$A$1:$D$42,AA198,TRUE),VLOOKUP(Eingabeblatt!P198,Berechnung_Female!$A$1:$D$42,AA198,TRUE)) ->  | W198: =I198/U198 -> 
H199: 0 | L199: 0 | M199: 0 | N199: 0 | V199: =IF(A199="m",VLOOKUP(P199,Berechnung_Male!$A$1:$D$42,AA199,TRUE),VLOOKUP(Eingabeblatt!P199,Berechnung_Female!$A$1:$D$42,AA199,TRUE)) -> 
H200: 0 | L200: 0 | M200: 0 | N200: 0 | V200: =IF(A200="m",VLOOKUP(P200,Berechnung_Male!$A$1:$D$42,AA200,TRUE),VLOOKUP(Eingabeblatt!P200,Berechnung_Female!$A$1:$D$42,AA200,TRUE)) -> 
H201: 0 | L201: 0 | M201: 0 | N201: 0 | V201: =IF(A201="m",VLOOKUP(P201,Berechnung_Male!$A$1:$D$42,AA201,TRUE),VLOOKUP(Eingabeblatt!P201,Berechnung_Female!$A$1:$D$42,AA201,TRUE)) -> 
H202: 0 | L202: 0 | M202: 0 | N202: 0 | V202: =IF(A202="m",VLOOKUP(P202,Berechnung_Male!$A$1:$D$42,AA202,TRUE),VLOOKUP(Eingabeblatt!P202,Berechnung_Female!$A$1:$D$42,AA202,TRUE)) -> 
H203: 0 | L203: 0 | M203: 0 | N203: 0 | V203: =IF(A203="m",VLOOKUP(P203,Berechnung_Male!$A$1:$D$42,AA203,TRUE),VLOOKUP(Eingabeblatt!P203,Berechnung_Female!$A$1:$D$42,AA203,TRUE)) -> 
... 297 more rows

Sheet Ausgabeblatt
A1: Name Nom | B1: Vorname Prénom | C1: Geburtsdatum Date de naissance | D1: Messdatum Date de la mesure | E1: Bio. Entwicklungsstand Zahl (1-3) Développement bio. Catégorie 1-3 | F1: Biologischer Entwicklungsstand Etat de développement biologique
A2: =IF(Eingabeblatt!C5="","",Eingabeblatt!C5) -> rogez | B2: =IF(Eingabeblatt!D5="","",Eingabeblatt!D5) -> Lucas | C2: =IF(Eingabeblatt!E5="","",Eingabeblatt!E5) -> 2002-07-15 | D2: =IF(Eingabeblatt!B5="","",Eingabeblatt!B5) -> 2024-09-13 | E2: =Eingabeblatt!R5 -> 3 | F2: =Eingabeblatt!Q5 -> Spät / Tardif
A3: =IF(Eingabeblatt!C6="","",Eingabeblatt!C6) ->  | B3: =IF(Eingabeblatt!D6="","",Eingabeblatt!D6) ->  | C3: =IF(Eingabeblatt!E6="","",Eingabeblatt!E6) -> 2012-03-12 | D3: =IF(Eingabeblatt!B6="","",Eingabeblatt!B6) -> 2024-09-13 | E3: =Eingabeblatt!R6 -> 2 | F3: =Eingabeblatt!Q6 -> Durchschnittlich / Normal
A4: =IF(Eingabeblatt!C7="","",Eingabeblatt!C7) ->  | B4: =IF(Eingabeblatt!D7="","",Eingabeblatt!D7) ->  | C4: =IF(Eingabeblatt!E7="","",Eingabeblatt!E7) -> 2014-03-15 | D4: =IF(Eingabeblatt!B7="","",Eingabeblatt!B7) -> 2024-09-15 | E4: =Eingabeblatt!R7 -> 2 | F4: =Eingabeblatt!Q7 -> Durchschnittlich / Normal
A5: =IF(Eingabeblatt!C8="","",Eingabeblatt!C8) ->  | B5: =IF(Eingabeblatt!D8="","",Eingabeblatt!D8) ->  | C5: =IF(Eingabeblatt!E8="","",Eingabeblatt!E8) -> 2014-03-16 | D5: =IF(Eingabeblatt!B8="","",Eingabeblatt!B8) -> 2024-09-16 | E5: =Eingabeblatt!R8 -> 2 | F5: =Eingabeblatt!Q8 -> Durchschnittlich / Normal
A6: =IF(Eingabeblatt!C9="","",Eingabeblatt!C9) ->  | B6: =IF(Eingabeblatt!D9="","",Eingabeblatt!D9) ->  | C6: =IF(Eingabeblatt!E9="","",Eingabeblatt!E9) ->  | D6: =IF(Eingabeblatt!B9="","",Eingabeblatt!B9) ->  | E6: =Eingabeblatt!R9 ->  | F6: =Eingabeblatt!Q9 -> 
A7: =IF(Eingabeblatt!C10="","",Eingabeblatt!C10) ->  | B7: =IF(Eingabeblatt!D10="","",Eingabeblatt!D10) ->  | C7: =IF(Eingabeblatt!E10="","",Eingabeblatt!E10) ->  | D7: =IF(Eingabeblatt!B10="","",Eingabeblatt!B10) ->  | E7: =Eingabeblatt!R10 ->  | F7: =Eingabeblatt!Q10 -> 
A8: =IF(Eingabeblatt!C11="","",Eingabeblatt!C11) ->  | B8: =IF(Eingabeblatt!D11="","",Eingabeblatt!D11) ->  | C8: =IF(Eingabeblatt!E11="","",Eingabeblatt!E11) ->  | D8: =IF(Eingabeblatt!B11="","",Eingabeblatt!B11) ->  | E8: =Eingabeblatt!R11 ->  | F8: =Eingabeblatt!Q11 -> 
A9: =IF(Eingabeblatt!C12="","",Eingabeblatt!C12) ->  | B9: =IF(Eingabeblatt!D12="","",Eingabeblatt!D12) ->  | C9: =IF(Eingabeblatt!E12="","",Eingabeblatt!E12) ->  | D9: =IF(Eingabeblatt!B12="","",Eingabeblatt!B12) ->  | E9: =Eingabeblatt!R12 ->  | F9: =Eingabeblatt!Q12 -> 
A10: =IF(Eingabeblatt!C13="","",Eingabeblatt!C13) ->  | B10: =IF(Eingabeblatt!D13="","",Eingabeblatt!D13) ->  | C10: =IF(Eingabeblatt!E13="","",Eingabeblatt!E13) ->  | D10: =IF(Eingabeblatt!B13="","",Eingabeblatt!B13) ->  | E10: =Eingabeblatt!R13 ->  | F10: =Eingabeblatt!Q13 -> 
A11: =IF(Eingabeblatt!C14="","",Eingabeblatt!C14) ->  | B11: =IF(Eingabeblatt!D14="","",Eingabeblatt!D14) ->  | C11: =IF(Eingabeblatt!E14="","",Eingabeblatt!E14) ->  | D11: =IF(Eingabeblatt!B14="","",Eingabeblatt!B14) ->  | E11: =Eingabeblatt!R14 ->  | F11: =Eingabeblatt!Q14 -> 
A12: =IF(Eingabeblatt!C15="","",Eingabeblatt!C15) ->  | B12: =IF(Eingabeblatt!D15="","",Eingabeblatt!D15) ->  | C12: =IF(Eingabeblatt!E15="","",Eingabeblatt!E15) ->  | D12: =IF(Eingabeblatt!B15="","",Eingabeblatt!B15) ->  | E12: =Eingabeblatt!R15 ->  | F12: =Eingabeblatt!Q15 -> 
A13: =IF(Eingabeblatt!C16="","",Eingabeblatt!C16) ->  | B13: =IF(Eingabeblatt!D16="","",Eingabeblatt!D16) ->  | C13: =IF(Eingabeblatt!E16="","",Eingabeblatt!E16) ->  | D13: =IF(Eingabeblatt!B16="","",Eingabeblatt!B16) ->  | E13: =Eingabeblatt!R16 ->  | F13: =Eingabeblatt!Q16 -> 
A14: =IF(Eingabeblatt!C17="","",Eingabeblatt!C17) ->  | B14: =IF(Eingabeblatt!D17="","",Eingabeblatt!D17) ->  | C14: =IF(Eingabeblatt!E17="","",Eingabeblatt!E17) ->  | D14: =IF(Eingabeblatt!B17="","",Eingabeblatt!B17) ->  | E14: =Eingabeblatt!R17 ->  | F14: =Eingabeblatt!Q17 -> 
A15: =IF(Eingabeblatt!C18="","",Eingabeblatt!C18) ->  | B15: =IF(Eingabeblatt!D18="","",Eingabeblatt!D18) ->  | C15: =IF(Eingabeblatt!E18="","",Eingabeblatt!E18) ->  | D15: =IF(Eingabeblatt!B18="","",Eingabeblatt!B18) ->  | E15: =Eingabeblatt!R18 ->  | F15: =Eingabeblatt!Q18 -> 
A16: =IF(Eingabeblatt!C19="","",Eingabeblatt!C19) ->  | B16: =IF(Eingabeblatt!D19="","",Eingabeblatt!D19) ->  | C16: =IF(Eingabeblatt!E19="","",Eingabeblatt!E19) ->  | D16: =IF(Eingabeblatt!B19="","",Eingabeblatt!B19) ->  | E16: =Eingabeblatt!R19 ->  | F16: =Eingabeblatt!Q19 -> 
A17: =IF(Eingabeblatt!C20="","",Eingabeblatt!C20) ->  | B17: =IF(Eingabeblatt!D20="","",Eingabeblatt!D20) ->  | C17: =IF(Eingabeblatt!E20="","",Eingabeblatt!E20) ->  | D17: =IF(Eingabeblatt!B20="","",Eingabeblatt!B20) ->  | E17: =Eingabeblatt!R20 ->  | F17: =Eingabeblatt!Q20 -> 
A18: =IF(Eingabeblatt!C21="","",Eingabeblatt!C21) ->  | B18: =IF(Eingabeblatt!D21="","",Eingabeblatt!D21) ->  | C18: =IF(Eingabeblatt!E21="","",Eingabeblatt!E21) ->  | D18: =IF(Eingabeblatt!B21="","",Eingabeblatt!B21) ->  | E18: =Eingabeblatt!R21 ->  | F18: =Eingabeblatt!Q21 -> 
A19: =IF(Eingabeblatt!C22="","",Eingabeblatt!C22) ->  | B19: =IF(Eingabeblatt!D22="","",Eingabeblatt!D22) ->  | C19: =IF(Eingabeblatt!E22="","",Eingabeblatt!E22) ->  | D19: =IF(Eingabeblatt!B22="","",Eingabeblatt!B22) ->  | E19: =Eingabeblatt!R22 ->  | F19: =Eingabeblatt!Q22 -> 
A20: =IF(Eingabeblatt!C23="","",Eingabeblatt!C23) ->  | B20: =IF(Eingabeblatt!D23="","",Eingabeblatt!D23) ->  | C20: =IF(Eingabeblatt!E23="","",Eingabeblatt!E23) ->  | D20: =IF(Eingabeblatt!B23="","",Eingabeblatt!B23) ->  | E20: =Eingabeblatt!R23 ->  | F20: =Eingabeblatt!Q23 -> 
A21: =IF(Eingabeblatt!C24="","",Eingabeblatt!C24) ->  | B21: =IF(Eingabeblatt!D24="","",Eingabeblatt!D24) ->  | C21: =IF(Eingabeblatt!E24="","",Eingabeblatt!E24) ->  | D21: =IF(Eingabeblatt!B24="","",Eingabeblatt!B24) ->  | E21: =Eingabeblatt!R24 ->  | F21: =Eingabeblatt!Q24 -> 
A22: =IF(Eingabeblatt!C25="","",Eingabeblatt!C25) ->  | B22: =IF(Eingabeblatt!D25="","",Eingabeblatt!D25) ->  | C22: =IF(Eingabeblatt!E25="","",Eingabeblatt!E25) ->  | D22: =IF(Eingabeblatt!B25="","",Eingabeblatt!B25) ->  | E22: =Eingabeblatt!R25 ->  | F22: =Eingabeblatt!Q25 -> 
A23: =IF(Eingabeblatt!C26="","",Eingabeblatt!C26) ->  | B23: =IF(Eingabeblatt!D26="","",Eingabeblatt!D26) ->  | C23: =IF(Eingabeblatt!E26="","",Eingabeblatt!E26) ->  | D23: =IF(Eingabeblatt!B26="","",Eingabeblatt!B26) ->  | E23: =Eingabeblatt!R26 ->  | F23: =Eingabeblatt!Q26 -> 
A24: =IF(Eingabeblatt!C27="","",Eingabeblatt!C27) ->  | B24: =IF(Eingabeblatt!D27="","",Eingabeblatt!D27) ->  | C24: =IF(Eingabeblatt!E27="","",Eingabeblatt!E27) ->  | D24: =IF(Eingabeblatt!B27="","",Eingabeblatt!B27) ->  | E24: =Eingabeblatt!R27 ->  | F24: =Eingabeblatt!Q27 -> 
A25: =IF(Eingabeblatt!C28="","",Eingabeblatt!C28) ->  | B25: =IF(Eingabeblatt!D28="","",Eingabeblatt!D28) ->  | C25: =IF(Eingabeblatt!E28="","",Eingabeblatt!E28) ->  | D25: =IF(Eingabeblatt!B28="","",Eingabeblatt!B28) ->  | E25: =Eingabeblatt!R28 ->  | F25: =Eingabeblatt!Q28 -> 
A26: =IF(Eingabeblatt!C29="","",Eingabeblatt!C29) ->  | B26: =IF(Eingabeblatt!D29="","",Eingabeblatt!D29) ->  | C26: =IF(Eingabeblatt!E29="","",Eingabeblatt!E29) ->  | D26: =IF(Eingabeblatt!B29="","",Eingabeblatt!B29) ->  | E26: =Eingabeblatt!R29 ->  | F26: =Eingabeblatt!Q29 -> 
A27: =IF(Eingabeblatt!C30="","",Eingabeblatt!C30) ->  | B27: =IF(Eingabeblatt!D30="","",Eingabeblatt!D30) ->  | C27: =IF(Eingabeblatt!E30="","",Eingabeblatt!E30) ->  | D27: =IF(Eingabeblatt!B30="","",Eingabeblatt!B30) ->  | E27: =Eingabeblatt!R30 ->  | F27: =Eingabeblatt!Q30 -> 
A28: =IF(Eingabeblatt!C31="","",Eingabeblatt!C31) ->  | B28: =IF(Eingabeblatt!D31="","",Eingabeblatt!D31) ->  | C28: =IF(Eingabeblatt!E31="","",Eingabeblatt!E31) ->  | D28: =IF(Eingabeblatt!B31="","",Eingabeblatt!B31) ->  | E28: =Eingabeblatt!R31 ->  | F28: =Eingabeblatt!Q31 -> 
A29: =IF(Eingabeblatt!C32="","",Eingabeblatt!C32) ->  | B29: =IF(Eingabeblatt!D32="","",Eingabeblatt!D32) ->  | C29: =IF(Eingabeblatt!E32="","",Eingabeblatt!E32) ->  | D29: =IF(Eingabeblatt!B32="","",Eingabeblatt!B32) ->  | E29: =Eingabeblatt!R32 ->  | F29: =Eingabeblatt!Q32 -> 
A30: =IF(Eingabeblatt!C33="","",Eingabeblatt!C33) ->  | B30: =IF(Eingabeblatt!D33="","",Eingabeblatt!D33) ->  | C30: =IF(Eingabeblatt!E33="","",Eingabeblatt!E33) ->  | D30: =IF(Eingabeblatt!B33="","",Eingabeblatt!B33) ->  | E30: =Eingabeblatt!R33 ->  | F30: =Eingabeblatt!Q33 -> 
A31: =IF(Eingabeblatt!C34="","",Eingabeblatt!C34) ->  | B31: =IF(Eingabeblatt!D34="","",Eingabeblatt!D34) ->  | C31: =IF(Eingabeblatt!E34="","",Eingabeblatt!E34) ->  | D31: =IF(Eingabeblatt!B34="","",Eingabeblatt!B34) ->  | E31: =Eingabeblatt!R34 ->  | F31: =Eingabeblatt!Q34 -> 
A32: =IF(Eingabeblatt!C35="","",Eingabeblatt!C35) ->  | B32: =IF(Eingabeblatt!D35="","",Eingabeblatt!D35) ->  | C32: =IF(Eingabeblatt!E35="","",Eingabeblatt!E35) ->  | D32: =IF(Eingabeblatt!B35="","",Eingabeblatt!B35) ->  | E32: =Eingabeblatt!R35 ->  | F32: =Eingabeblatt!Q35 -> 
A33: =IF(Eingabeblatt!C36="","",Eingabeblatt!C36) ->  | B33: =IF(Eingabeblatt!D36="","",Eingabeblatt!D36) ->  | C33: =IF(Eingabeblatt!E36="","",Eingabeblatt!E36) ->  | D33: =IF(Eingabeblatt!B36="","",Eingabeblatt!B36) ->  | E33: =Eingabeblatt!R36 ->  | F33: =Eingabeblatt!Q36 -> 
A34: =IF(Eingabeblatt!C37="","",Eingabeblatt!C37) ->  | B34: =IF(Eingabeblatt!D37="","",Eingabeblatt!D37) ->  | C34: =IF(Eingabeblatt!E37="","",Eingabeblatt!E37) ->  | D34: =IF(Eingabeblatt!B37="","",Eingabeblatt!B37) ->  | E34: =Eingabeblatt!R37 ->  | F34: =Eingabeblatt!Q37 -> 
A35: =IF(Eingabeblatt!C38="","",Eingabeblatt!C38) ->  | B35: =IF(Eingabeblatt!D38="","",Eingabeblatt!D38) ->  | C35: =IF(Eingabeblatt!E38="","",Eingabeblatt!E38) ->  | D35: =IF(Eingabeblatt!B38="","",Eingabeblatt!B38) ->  | E35: =Eingabeblatt!R38 ->  | F35: =Eingabeblatt!Q38 -> 
A36: =IF(Eingabeblatt!C39="","",Eingabeblatt!C39) ->  | B36: =IF(Eingabeblatt!D39="","",Eingabeblatt!D39) ->  | C36: =IF(Eingabeblatt!E39="","",Eingabeblatt!E39) ->  | D36: =IF(Eingabeblatt!B39="","",Eingabeblatt!B39) ->  | E36: =Eingabeblatt!R39 ->  | F36: =Eingabeblatt!Q39 -> 
A37: =IF(Eingabeblatt!C40="","",Eingabeblatt!C40) ->  | B37: =IF(Eingabeblatt!D40="","",Eingabeblatt!D40) ->  | C37: =IF(Eingabeblatt!E40="","",Eingabeblatt!E40) ->  | D37: =IF(Eingabeblatt!B40="","",Eingabeblatt!B40) ->  | E37: =Eingabeblatt!R40 ->  | F37: =Eingabeblatt!Q40 -> 
A38: =IF(Eingabeblatt!C41="","",Eingabeblatt!C41) ->  | B38: =IF(Eingabeblatt!D41="","",Eingabeblatt!D41) ->  | C38: =IF(Eingabeblatt!E41="","",Eingabeblatt!E41) ->  | D38: =IF(Eingabeblatt!B41="","",Eingabeblatt!B41) ->  | E38: =Eingabeblatt!R41 ->  | F38: =Eingabeblatt!Q41 -> 
A39: =IF(Eingabeblatt!C42="","",Eingabeblatt!C42) ->  | B39: =IF(Eingabeblatt!D42="","",Eingabeblatt!D42) ->  | C39: =IF(Eingabeblatt!E42="","",Eingabeblatt!E42) ->  | D39: =IF(Eingabeblatt!B42="","",Eingabeblatt!B42) ->  | E39: =Eingabeblatt!R42 ->  | F39: =Eingabeblatt!Q42 -> 
A40: =IF(Eingabeblatt!C43="","",Eingabeblatt!C43) ->  | B40: =IF(Eingabeblatt!D43="","",Eingabeblatt!D43) ->  | C40: =IF(Eingabeblatt!E43="","",Eingabeblatt!E43) ->  | D40: =IF(Eingabeblatt!B43="","",Eingabeblatt!B43) ->  | E40: =Eingabeblatt!R43 ->  | F40: =Eingabeblatt!Q43 -> 
A41: =IF(Eingabeblatt!C44="","",Eingabeblatt!C44) ->  | B41: =IF(Eingabeblatt!D44="","",Eingabeblatt!D44) ->  | C41: =IF(Eingabeblatt!E44="","",Eingabeblatt!E44) ->  | D41: =IF(Eingabeblatt!B44="","",Eingabeblatt!B44) ->  | E41: =Eingabeblatt!R44 ->  | F41: =Eingabeblatt!Q44 -> 
A42: =IF(Eingabeblatt!C45="","",Eingabeblatt!C45) ->  | B42: =IF(Eingabeblatt!D45="","",Eingabeblatt!D45) ->  | C42: =IF(Eingabeblatt!E45="","",Eingabeblatt!E45) ->  | D42: =IF(Eingabeblatt!B45="","",Eingabeblatt!B45) ->  | E42: =Eingabeblatt!R45 ->  | F42: =Eingabeblatt!Q45 -> 
A43: =IF(Eingabeblatt!C46="","",Eingabeblatt!C46) ->  | B43: =IF(Eingabeblatt!D46="","",Eingabeblatt!D46) ->  | C43: =IF(Eingabeblatt!E46="","",Eingabeblatt!E46) ->  | D43: =IF(Eingabeblatt!B46="","",Eingabeblatt!B46) ->  | E43: =Eingabeblatt!R46 ->  | F43: =Eingabeblatt!Q46 -> 
A44: =IF(Eingabeblatt!C47="","",Eingabeblatt!C47) ->  | B44: =IF(Eingabeblatt!D47="","",Eingabeblatt!D47) ->  | C44: =IF(Eingabeblatt!E47="","",Eingabeblatt!E47) ->  | D44: =IF(Eingabeblatt!B47="","",Eingabeblatt!B47) ->  | E44: =Eingabeblatt!R47 ->  | F44: =Eingabeblatt!Q47 -> 
A45: =IF(Eingabeblatt!C48="","",Eingabeblatt!C48) ->  | B45: =IF(Eingabeblatt!D48="","",Eingabeblatt!D48) ->  | C45: =IF(Eingabeblatt!E48="","",Eingabeblatt!E48) ->  | D45: =IF(Eingabeblatt!B48="","",Eingabeblatt!B48) ->  | E45: =Eingabeblatt!R48 ->  | F45: =Eingabeblatt!Q48 -> 
A46: =IF(Eingabeblatt!C49="","",Eingabeblatt!C49) ->  | B46: =IF(Eingabeblatt!D49="","",Eingabeblatt!D49) ->  | C46: =IF(Eingabeblatt!E49="","",Eingabeblatt!E49) ->  | D46: =IF(Eingabeblatt!B49="","",Eingabeblatt!B49) ->  | E46: =Eingabeblatt!R49 ->  | F46: =Eingabeblatt!Q49 -> 
A47: =IF(Eingabeblatt!C50="","",Eingabeblatt!C50) ->  | B47: =IF(Eingabeblatt!D50="","",Eingabeblatt!D50) ->  | C47: =IF(Eingabeblatt!E50="","",Eingabeblatt!E50) ->  | D47: =IF(Eingabeblatt!B50="","",Eingabeblatt!B50) ->  | E47: =Eingabeblatt!R50 ->  | F47: =Eingabeblatt!Q50 -> 
A48: =IF(Eingabeblatt!C51="","",Eingabeblatt!C51) ->  | B48: =IF(Eingabeblatt!D51="","",Eingabeblatt!D51) ->  | C48: =IF(Eingabeblatt!E51="","",Eingabeblatt!E51) ->  | D48: =IF(Eingabeblatt!B51="","",Eingabeblatt!B51) ->  | E48: =Eingabeblatt!R51 ->  | F48: =Eingabeblatt!Q51 -> 
A49: =IF(Eingabeblatt!C52="","",Eingabeblatt!C52) ->  | B49: =IF(Eingabeblatt!D52="","",Eingabeblatt!D52) ->  | C49: =IF(Eingabeblatt!E52="","",Eingabeblatt!E52) ->  | D49: =IF(Eingabeblatt!B52="","",Eingabeblatt!B52) ->  | E49: =Eingabeblatt!R52 ->  | F49: =Eingabeblatt!Q52 -> 
A50: =IF(Eingabeblatt!C53="","",Eingabeblatt!C53) ->  | B50: =IF(Eingabeblatt!D53="","",Eingabeblatt!D53) ->  | C50: =IF(Eingabeblatt!E53="","",Eingabeblatt!E53) ->  | D50: =IF(Eingabeblatt!B53="","",Eingabeblatt!B53) ->  | E50: =Eingabeblatt!R53 ->  | F50: =Eingabeblatt!Q53 -> 
A51: =IF(Eingabeblatt!C54="","",Eingabeblatt!C54) ->  | B51: =IF(Eingabeblatt!D54="","",Eingabeblatt!D54) ->  | C51: =IF(Eingabeblatt!E54="","",Eingabeblatt!E54) ->  | D51: =IF(Eingabeblatt!B54="","",Eingabeblatt!B54) ->  | E51: =Eingabeblatt!R54 ->  | F51: =Eingabeblatt!Q54 -> 
A52: =IF(Eingabeblatt!C55="","",Eingabeblatt!C55) ->  | B52: =IF(Eingabeblatt!D55="","",Eingabeblatt!D55) ->  | C52: =IF(Eingabeblatt!E55="","",Eingabeblatt!E55) ->  | D52: =IF(Eingabeblatt!B55="","",Eingabeblatt!B55) ->  | E52: =Eingabeblatt!R55 ->  | F52: =Eingabeblatt!Q55 -> 
A53: =IF(Eingabeblatt!C56="","",Eingabeblatt!C56) ->  | B53: =IF(Eingabeblatt!D56="","",Eingabeblatt!D56) ->  | C53: =IF(Eingabeblatt!E56="","",Eingabeblatt!E56) ->  | D53: =IF(Eingabeblatt!B56="","",Eingabeblatt!B56) ->  | E53: =Eingabeblatt!R56 ->  | F53: =Eingabeblatt!Q56 -> 
A54: =IF(Eingabeblatt!C57="","",Eingabeblatt!C57) ->  | B54: =IF(Eingabeblatt!D57="","",Eingabeblatt!D57) ->  | C54: =IF(Eingabeblatt!E57="","",Eingabeblatt!E57) ->  | D54: =IF(Eingabeblatt!B57="","",Eingabeblatt!B57) ->  | E54: =Eingabeblatt!R57 ->  | F54: =Eingabeblatt!Q57 -> 
A55: =IF(Eingabeblatt!C58="","",Eingabeblatt!C58) ->  | B55: =IF(Eingabeblatt!D58="","",Eingabeblatt!D58) ->  | C55: =IF(Eingabeblatt!E58="","",Eingabeblatt!E58) ->  | D55: =IF(Eingabeblatt!B58="","",Eingabeblatt!B58) ->  | E55: =Eingabeblatt!R58 ->  | F55: =Eingabeblatt!Q58 -> 
A56: =IF(Eingabeblatt!C59="","",Eingabeblatt!C59) ->  | B56: =IF(Eingabeblatt!D59="","",Eingabeblatt!D59) ->  | C56: =IF(Eingabeblatt!E59="","",Eingabeblatt!E59) ->  | D56: =IF(Eingabeblatt!B59="","",Eingabeblatt!B59) ->  | E56: =Eingabeblatt!R59 ->  | F56: =Eingabeblatt!Q59 -> 
A57: =IF(Eingabeblatt!C60="","",Eingabeblatt!C60) ->  | B57: =IF(Eingabeblatt!D60="","",Eingabeblatt!D60) ->  | C57: =IF(Eingabeblatt!E60="","",Eingabeblatt!E60) ->  | D57: =IF(Eingabeblatt!B60="","",Eingabeblatt!B60) ->  | E57: =Eingabeblatt!R60 ->  | F57: =Eingabeblatt!Q60 -> 
A58: =IF(Eingabeblatt!C61="","",Eingabeblatt!C61) ->  | B58: =IF(Eingabeblatt!D61="","",Eingabeblatt!D61) ->  | C58: =IF(Eingabeblatt!E61="","",Eingabeblatt!E61) ->  | D58: =IF(Eingabeblatt!B61="","",Eingabeblatt!B61) ->  | E58: =Eingabeblatt!R61 ->  | F58: =Eingabeblatt!Q61 -> 
A59: =IF(Eingabeblatt!C62="","",Eingabeblatt!C62) ->  | B59: =IF(Eingabeblatt!D62="","",Eingabeblatt!D62) ->  | C59: =IF(Eingabeblatt!E62="","",Eingabeblatt!E62) ->  | D59: =IF(Eingabeblatt!B62="","",Eingabeblatt!B62) ->  | E59: =Eingabeblatt!R62 ->  | F59: =Eingabeblatt!Q62 -> 
A60: =IF(Eingabeblatt!C63="","",Eingabeblatt!C63) ->  | B60: =IF(Eingabeblatt!D63="","",Eingabeblatt!D63) ->  | C60: =IF(Eingabeblatt!E63="","",Eingabeblatt!E63) ->  | D60: =IF(Eingabeblatt!B63="","",Eingabeblatt!B63) ->  | E60: =Eingabeblatt!R63 ->  | F60: =Eingabeblatt!Q63 -> 
A61: =IF(Eingabeblatt!C64="","",Eingabeblatt!C64) ->  | B61: =IF(Eingabeblatt!D64="","",Eingabeblatt!D64) ->  | C61: =IF(Eingabeblatt!E64="","",Eingabeblatt!E64) ->  | D61: =IF(Eingabeblatt!B64="","",Eingabeblatt!B64) ->  | E61: =Eingabeblatt!R64 ->  | F61: =Eingabeblatt!Q64 -> 
A62: =IF(Eingabeblatt!C65="","",Eingabeblatt!C65) ->  | B62: =IF(Eingabeblatt!D65="","",Eingabeblatt!D65) ->  | C62: =IF(Eingabeblatt!E65="","",Eingabeblatt!E65) ->  | D62: =IF(Eingabeblatt!B65="","",Eingabeblatt!B65) ->  | E62: =Eingabeblatt!R65 ->  | F62: =Eingabeblatt!Q65 -> 
A63: =IF(Eingabeblatt!C66="","",Eingabeblatt!C66) ->  | B63: =IF(Eingabeblatt!D66="","",Eingabeblatt!D66) ->  | C63: =IF(Eingabeblatt!E66="","",Eingabeblatt!E66) ->  | D63: =IF(Eingabeblatt!B66="","",Eingabeblatt!B66) ->  | E63: =Eingabeblatt!R66 ->  | F63: =Eingabeblatt!Q66 -> 
A64: =IF(Eingabeblatt!C67="","",Eingabeblatt!C67) ->  | B64: =IF(Eingabeblatt!D67="","",Eingabeblatt!D67) ->  | C64: =IF(Eingabeblatt!E67="","",Eingabeblatt!E67) ->  | D64: =IF(Eingabeblatt!B67="","",Eingabeblatt!B67) ->  | E64: =Eingabeblatt!R67 ->  | F64: =Eingabeblatt!Q67 -> 
A65: =IF(Eingabeblatt!C68="","",Eingabeblatt!C68) ->  | B65: =IF(Eingabeblatt!D68="","",Eingabeblatt!D68) ->  | C65: =IF(Eingabeblatt!E68="","",Eingabeblatt!E68) ->  | D65: =IF(Eingabeblatt!B68="","",Eingabeblatt!B68) ->  | E65: =Eingabeblatt!R68 ->  | F65: =Eingabeblatt!Q68 -> 
A66: =IF(Eingabeblatt!C69="","",Eingabeblatt!C69) ->  | B66: =IF(Eingabeblatt!D69="","",Eingabeblatt!D69) ->  | C66: =IF(Eingabeblatt!E69="","",Eingabeblatt!E69) ->  | D66: =IF(Eingabeblatt!B69="","",Eingabeblatt!B69) ->  | E66: =Eingabeblatt!R69 ->  | F66: =Eingabeblatt!Q69 -> 
A67: =IF(Eingabeblatt!C70="","",Eingabeblatt!C70) ->  | B67: =IF(Eingabeblatt!D70="","",Eingabeblatt!D70) ->  | C67: =IF(Eingabeblatt!E70="","",Eingabeblatt!E70) ->  | D67: =IF(Eingabeblatt!B70="","",Eingabeblatt!B70) ->  | E67: =Eingabeblatt!R70 ->  | F67: =Eingabeblatt!Q70 -> 
A68: =IF(Eingabeblatt!C71="","",Eingabeblatt!C71) ->  | B68: =IF(Eingabeblatt!D71="","",Eingabeblatt!D71) ->  | C68: =IF(Eingabeblatt!E71="","",Eingabeblatt!E71) ->  | D68: =IF(Eingabeblatt!B71="","",Eingabeblatt!B71) ->  | E68: =Eingabeblatt!R71 ->  | F68: =Eingabeblatt!Q71 -> 
A69: =IF(Eingabeblatt!C72="","",Eingabeblatt!C72) ->  | B69: =IF(Eingabeblatt!D72="","",Eingabeblatt!D72) ->  | C69: =IF(Eingabeblatt!E72="","",Eingabeblatt!E72) ->  | D69: =IF(Eingabeblatt!B72="","",Eingabeblatt!B72) ->  | E69: =Eingabeblatt!R72 ->  | F69: =Eingabeblatt!Q72 -> 
A70: =IF(Eingabeblatt!C73="","",Eingabeblatt!C73) ->  | B70: =IF(Eingabeblatt!D73="","",Eingabeblatt!D73) ->  | C70: =IF(Eingabeblatt!E73="","",Eingabeblatt!E73) ->  | D70: =IF(Eingabeblatt!B73="","",Eingabeblatt!B73) ->  | E70: =Eingabeblatt!R73 ->  | F70: =Eingabeblatt!Q73 -> 
A71: =IF(Eingabeblatt!C74="","",Eingabeblatt!C74) ->  | B71: =IF(Eingabeblatt!D74="","",Eingabeblatt!D74) ->  | C71: =IF(Eingabeblatt!E74="","",Eingabeblatt!E74) ->  | D71: =IF(Eingabeblatt!B74="","",Eingabeblatt!B74) ->  | E71: =Eingabeblatt!R74 ->  | F71: =Eingabeblatt!Q74 -> 
A72: =IF(Eingabeblatt!C75="","",Eingabeblatt!C75) ->  | B72: =IF(Eingabeblatt!D75="","",Eingabeblatt!D75) ->  | C72: =IF(Eingabeblatt!E75="","",Eingabeblatt!E75) ->  | D72: =IF(Eingabeblatt!B75="","",Eingabeblatt!B75) ->  | E72: =Eingabeblatt!R75 ->  | F72: =Eingabeblatt!Q75 -> 
A73: =IF(Eingabeblatt!C76="","",Eingabeblatt!C76) ->  | B73: =IF(Eingabeblatt!D76="","",Eingabeblatt!D76) ->  | C73: =IF(Eingabeblatt!E76="","",Eingabeblatt!E76) ->  | D73: =IF(Eingabeblatt!B76="","",Eingabeblatt!B76) ->  | E73: =Eingabeblatt!R76 ->  | F73: =Eingabeblatt!Q76 -> 
A74: =IF(Eingabeblatt!C77="","",Eingabeblatt!C77) ->  | B74: =IF(Eingabeblatt!D77="","",Eingabeblatt!D77) ->  | C74: =IF(Eingabeblatt!E77="","",Eingabeblatt!E77) ->  | D74: =IF(Eingabeblatt!B77="","",Eingabeblatt!B77) ->  | E74: =Eingabeblatt!R77 ->  | F74: =Eingabeblatt!Q77 -> 
A75: =IF(Eingabeblatt!C78="","",Eingabeblatt!C78) ->  | B75: =IF(Eingabeblatt!D78="","",Eingabeblatt!D78) ->  | C75: =IF(Eingabeblatt!E78="","",Eingabeblatt!E78) ->  | D75: =IF(Eingabeblatt!B78="","",Eingabeblatt!B78) ->  | E75: =Eingabeblatt!R78 ->  | F75: =Eingabeblatt!Q78 -> 
A76: =IF(Eingabeblatt!C79="","",Eingabeblatt!C79) ->  | B76: =IF(Eingabeblatt!D79="","",Eingabeblatt!D79) ->  | C76: =IF(Eingabeblatt!E79="","",Eingabeblatt!E79) ->  | D76: =IF(Eingabeblatt!B79="","",Eingabeblatt!B79) ->  | E76: =Eingabeblatt!R79 ->  | F76: =Eingabeblatt!Q79 -> 
A77: =IF(Eingabeblatt!C80="","",Eingabeblatt!C80) ->  | B77: =IF(Eingabeblatt!D80="","",Eingabeblatt!D80) ->  | C77: =IF(Eingabeblatt!E80="","",Eingabeblatt!E80) ->  | D77: =IF(Eingabeblatt!B80="","",Eingabeblatt!B80) ->  | E77: =Eingabeblatt!R80 ->  | F77: =Eingabeblatt!Q80 -> 
A78: =IF(Eingabeblatt!C81="","",Eingabeblatt!C81) ->  | B78: =IF(Eingabeblatt!D81="","",Eingabeblatt!D81) ->  | C78: =IF(Eingabeblatt!E81="","",Eingabeblatt!E81) ->  | D78: =IF(Eingabeblatt!B81="","",Eingabeblatt!B81) ->  | E78: =Eingabeblatt!R81 ->  | F78: =Eingabeblatt!Q81 -> 
A79: =IF(Eingabeblatt!C82="","",Eingabeblatt!C82) ->  | B79: =IF(Eingabeblatt!D82="","",Eingabeblatt!D82) ->  | C79: =IF(Eingabeblatt!E82="","",Eingabeblatt!E82) ->  | D79: =IF(Eingabeblatt!B82="","",Eingabeblatt!B82) ->  | E79: =Eingabeblatt!R82 ->  | F79: =Eingabeblatt!Q82 -> 
A80: =IF(Eingabeblatt!C83="","",Eingabeblatt!C83) ->  | B80: =IF(Eingabeblatt!D83="","",Eingabeblatt!D83) ->  | C80: =IF(Eingabeblatt!E83="","",Eingabeblatt!E83) ->  | D80: =IF(Eingabeblatt!B83="","",Eingabeblatt!B83) ->  | E80: =Eingabeblatt!R83 ->  | F80: =Eingabeblatt!Q83 -> 
A81: =IF(Eingabeblatt!C84="","",Eingabeblatt!C84) ->  | B81: =IF(Eingabeblatt!D84="","",Eingabeblatt!D84) ->  | C81: =IF(Eingabeblatt!E84="","",Eingabeblatt!E84) ->  | D81: =IF(Eingabeblatt!B84="","",Eingabeblatt!B84) ->  | E81: =Eingabeblatt!R84 ->  | F81: =Eingabeblatt!Q84 -> 
A82: =IF(Eingabeblatt!C85="","",Eingabeblatt!C85) ->  | B82: =IF(Eingabeblatt!D85="","",Eingabeblatt!D85) ->  | C82: =IF(Eingabeblatt!E85="","",Eingabeblatt!E85) ->  | D82: =IF(Eingabeblatt!B85="","",Eingabeblatt!B85) ->  | E82: =Eingabeblatt!R85 ->  | F82: =Eingabeblatt!Q85 -> 
A83: =IF(Eingabeblatt!C86="","",Eingabeblatt!C86) ->  | B83: =IF(Eingabeblatt!D86="","",Eingabeblatt!D86) ->  | C83: =IF(Eingabeblatt!E86="","",Eingabeblatt!E86) ->  | D83: =IF(Eingabeblatt!B86="","",Eingabeblatt!B86) ->  | E83: =Eingabeblatt!R86 ->  | F83: =Eingabeblatt!Q86 -> 
A84: =IF(Eingabeblatt!C87="","",Eingabeblatt!C87) ->  | B84: =IF(Eingabeblatt!D87="","",Eingabeblatt!D87) ->  | C84: =IF(Eingabeblatt!E87="","",Eingabeblatt!E87) ->  | D84: =IF(Eingabeblatt!B87="","",Eingabeblatt!B87) ->  | E84: =Eingabeblatt!R87 ->  | F84: =Eingabeblatt!Q87 -> 
A85: =IF(Eingabeblatt!C88="","",Eingabeblatt!C88) ->  | B85: =IF(Eingabeblatt!D88="","",Eingabeblatt!D88) ->  | C85: =IF(Eingabeblatt!E88="","",Eingabeblatt!E88) ->  | D85: =IF(Eingabeblatt!B88="","",Eingabeblatt!B88) ->  | E85: =Eingabeblatt!R88 ->  | F85: =Eingabeblatt!Q88 -> 
A86: =IF(Eingabeblatt!C89="","",Eingabeblatt!C89) ->  | B86: =IF(Eingabeblatt!D89="","",Eingabeblatt!D89) ->  | C86: =IF(Eingabeblatt!E89="","",Eingabeblatt!E89) ->  | D86: =IF(Eingabeblatt!B89="","",Eingabeblatt!B89) ->  | E86: =Eingabeblatt!R89 ->  | F86: =Eingabeblatt!Q89 -> 
A87: =IF(Eingabeblatt!C90="","",Eingabeblatt!C90) ->  | B87: =IF(Eingabeblatt!D90="","",Eingabeblatt!D90) ->  | C87: =IF(Eingabeblatt!E90="","",Eingabeblatt!E90) ->  | D87: =IF(Eingabeblatt!B90="","",Eingabeblatt!B90) ->  | E87: =Eingabeblatt!R90 ->  | F87: =Eingabeblatt!Q90 -> 
A88: =IF(Eingabeblatt!C91="","",Eingabeblatt!C91) ->  | B88: =IF(Eingabeblatt!D91="","",Eingabeblatt!D91) ->  | C88: =IF(Eingabeblatt!E91="","",Eingabeblatt!E91) ->  | D88: =IF(Eingabeblatt!B91="","",Eingabeblatt!B91) ->  | E88: =Eingabeblatt!R91 ->  | F88: =Eingabeblatt!Q91 -> 
A89: =IF(Eingabeblatt!C92="","",Eingabeblatt!C92) ->  | B89: =IF(Eingabeblatt!D92="","",Eingabeblatt!D92) ->  | C89: =IF(Eingabeblatt!E92="","",Eingabeblatt!E92) ->  | D89: =IF(Eingabeblatt!B92="","",Eingabeblatt!B92) ->  | E89: =Eingabeblatt!R92 ->  | F89: =Eingabeblatt!Q92 -> 
A90: =IF(Eingabeblatt!C93="","",Eingabeblatt!C93) ->  | B90: =IF(Eingabeblatt!D93="","",Eingabeblatt!D93) ->  | C90: =IF(Eingabeblatt!E93="","",Eingabeblatt!E93) ->  | D90: =IF(Eingabeblatt!B93="","",Eingabeblatt!B93) ->  | E90: =Eingabeblatt!R93 ->  | F90: =Eingabeblatt!Q93 -> 
A91: =IF(Eingabeblatt!C94="","",Eingabeblatt!C94) ->  | B91: =IF(Eingabeblatt!D94="","",Eingabeblatt!D94) ->  | C91: =IF(Eingabeblatt!E94="","",Eingabeblatt!E94) ->  | D91: =IF(Eingabeblatt!B94="","",Eingabeblatt!B94) ->  | E91: =Eingabeblatt!R94 ->  | F91: =Eingabeblatt!Q94 -> 
A92: =IF(Eingabeblatt!C95="","",Eingabeblatt!C95) ->  | B92: =IF(Eingabeblatt!D95="","",Eingabeblatt!D95) ->  | C92: =IF(Eingabeblatt!E95="","",Eingabeblatt!E95) ->  | D92: =IF(Eingabeblatt!B95="","",Eingabeblatt!B95) ->  | E92: =Eingabeblatt!R95 ->  | F92: =Eingabeblatt!Q95 -> 
A93: =IF(Eingabeblatt!C96="","",Eingabeblatt!C96) ->  | B93: =IF(Eingabeblatt!D96="","",Eingabeblatt!D96) ->  | C93: =IF(Eingabeblatt!E96="","",Eingabeblatt!E96) ->  | D93: =IF(Eingabeblatt!B96="","",Eingabeblatt!B96) ->  | E93: =Eingabeblatt!R96 ->  | F93: =Eingabeblatt!Q96 -> 
A94: =IF(Eingabeblatt!C97="","",Eingabeblatt!C97) ->  | B94: =IF(Eingabeblatt!D97="","",Eingabeblatt!D97) ->  | C94: =IF(Eingabeblatt!E97="","",Eingabeblatt!E97) ->  | D94: =IF(Eingabeblatt!B97="","",Eingabeblatt!B97) ->  | E94: =Eingabeblatt!R97 ->  | F94: =Eingabeblatt!Q97 -> 
A95: =IF(Eingabeblatt!C98="","",Eingabeblatt!C98) ->  | B95: =IF(Eingabeblatt!D98="","",Eingabeblatt!D98) ->  | C95: =IF(Eingabeblatt!E98="","",Eingabeblatt!E98) ->  | D95: =IF(Eingabeblatt!B98="","",Eingabeblatt!B98) ->  | E95: =Eingabeblatt!R98 ->  | F95: =Eingabeblatt!Q98 -> 
A96: =IF(Eingabeblatt!C99="","",Eingabeblatt!C99) ->  | B96: =IF(Eingabeblatt!D99="","",Eingabeblatt!D99) ->  | C96: =IF(Eingabeblatt!E99="","",Eingabeblatt!E99) ->  | D96: =IF(Eingabeblatt!B99="","",Eingabeblatt!B99) ->  | E96: =Eingabeblatt!R99 ->  | F96: =Eingabeblatt!Q99 -> 
A97: =IF(Eingabeblatt!C100="","",Eingabeblatt!C100) ->  | B97: =IF(Eingabeblatt!D100="","",Eingabeblatt!D100) ->  | C97: =IF(Eingabeblatt!E100="","",Eingabeblatt!E100) ->  | D97: =IF(Eingabeblatt!B100="","",Eingabeblatt!B100) ->  | E97: =Eingabeblatt!R100 ->  | F97: =Eingabeblatt!Q100 -> 
A98: =IF(Eingabeblatt!C101="","",Eingabeblatt!C101) ->  | B98: =IF(Eingabeblatt!D101="","",Eingabeblatt!D101) ->  | C98: =IF(Eingabeblatt!E101="","",Eingabeblatt!E101) ->  | D98: =IF(Eingabeblatt!B101="","",Eingabeblatt!B101) ->  | E98: =Eingabeblatt!R101 ->  | F98: =Eingabeblatt!Q101 -> 
A99: =IF(Eingabeblatt!C102="","",Eingabeblatt!C102) ->  | B99: =IF(Eingabeblatt!D102="","",Eingabeblatt!D102) ->  | C99: =IF(Eingabeblatt!E102="","",Eingabeblatt!E102) ->  | D99: =IF(Eingabeblatt!B102="","",Eingabeblatt!B102) ->  | E99: =Eingabeblatt!R102 ->  | F99: =Eingabeblatt!Q102 -> 
A100: =IF(Eingabeblatt!C103="","",Eingabeblatt!C103) ->  | B100: =IF(Eingabeblatt!D103="","",Eingabeblatt!D103) ->  | C100: =IF(Eingabeblatt!E103="","",Eingabeblatt!E103) ->  | D100: =IF(Eingabeblatt!B103="","",Eingabeblatt!B103) ->  | E100: =Eingabeblatt!R103 ->  | F100: =Eingabeblatt!Q103 -> 
A101: =IF(Eingabeblatt!C104="","",Eingabeblatt!C104) ->  | B101: =IF(Eingabeblatt!D104="","",Eingabeblatt!D104) ->  | C101: =IF(Eingabeblatt!E104="","",Eingabeblatt!E104) ->  | D101: =IF(Eingabeblatt!B104="","",Eingabeblatt!B104) ->  | E101: =Eingabeblatt!R104 ->  | F101: =Eingabeblatt!Q104 -> 
A102: =IF(Eingabeblatt!C105="","",Eingabeblatt!C105) ->  | B102: =IF(Eingabeblatt!D105="","",Eingabeblatt!D105) ->  | C102: =IF(Eingabeblatt!E105="","",Eingabeblatt!E105) ->  | D102: =IF(Eingabeblatt!B105="","",Eingabeblatt!B105) ->  | E102: =Eingabeblatt!R105 ->  | F102: =Eingabeblatt!Q105 -> 
A103: =IF(Eingabeblatt!C106="","",Eingabeblatt!C106) ->  | B103: =IF(Eingabeblatt!D106="","",Eingabeblatt!D106) ->  | C103: =IF(Eingabeblatt!E106="","",Eingabeblatt!E106) ->  | D103: =IF(Eingabeblatt!B106="","",Eingabeblatt!B106) ->  | E103: =Eingabeblatt!R106 ->  | F103: =Eingabeblatt!Q106 -> 
A104: =IF(Eingabeblatt!C107="","",Eingabeblatt!C107) ->  | B104: =IF(Eingabeblatt!D107="","",Eingabeblatt!D107) ->  | C104: =IF(Eingabeblatt!E107="","",Eingabeblatt!E107) ->  | D104: =IF(Eingabeblatt!B107="","",Eingabeblatt!B107) ->  | E104: =Eingabeblatt!R107 ->  | F104: =Eingabeblatt!Q107 -> 
A105: =IF(Eingabeblatt!C108="","",Eingabeblatt!C108) ->  | B105: =IF(Eingabeblatt!D108="","",Eingabeblatt!D108) ->  | C105: =IF(Eingabeblatt!E108="","",Eingabeblatt!E108) ->  | D105: =IF(Eingabeblatt!B108="","",Eingabeblatt!B108) ->  | E105: =Eingabeblatt!R108 ->  | F105: =Eingabeblatt!Q108 -> 
A106: =IF(Eingabeblatt!C109="","",Eingabeblatt!C109) ->  | B106: =IF(Eingabeblatt!D109="","",Eingabeblatt!D109) ->  | C106: =IF(Eingabeblatt!E109="","",Eingabeblatt!E109) ->  | D106: =IF(Eingabeblatt!B109="","",Eingabeblatt!B109) ->  | E106: =Eingabeblatt!R109 ->  | F106: =Eingabeblatt!Q109 -> 
A107: =IF(Eingabeblatt!C110="","",Eingabeblatt!C110) ->  | B107: =IF(Eingabeblatt!D110="","",Eingabeblatt!D110) ->  | C107: =IF(Eingabeblatt!E110="","",Eingabeblatt!E110) ->  | D107: =IF(Eingabeblatt!B110="","",Eingabeblatt!B110) ->  | E107: =Eingabeblatt!R110 ->  | F107: =Eingabeblatt!Q110 -> 
A108: =IF(Eingabeblatt!C111="","",Eingabeblatt!C111) ->  | B108: =IF(Eingabeblatt!D111="","",Eingabeblatt!D111) ->  | C108: =IF(Eingabeblatt!E111="","",Eingabeblatt!E111) ->  | D108: =IF(Eingabeblatt!B111="","",Eingabeblatt!B111) ->  | E108: =Eingabeblatt!R111 ->  | F108: =Eingabeblatt!Q111 -> 
A109: =IF(Eingabeblatt!C112="","",Eingabeblatt!C112) ->  | B109: =IF(Eingabeblatt!D112="","",Eingabeblatt!D112) ->  | C109: =IF(Eingabeblatt!E112="","",Eingabeblatt!E112) ->  | D109: =IF(Eingabeblatt!B112="","",Eingabeblatt!B112) ->  | E109: =Eingabeblatt!R112 ->  | F109: =Eingabeblatt!Q112 -> 
A110: =IF(Eingabeblatt!C113="","",Eingabeblatt!C113) ->  | B110: =IF(Eingabeblatt!D113="","",Eingabeblatt!D113) ->  | C110: =IF(Eingabeblatt!E113="","",Eingabeblatt!E113) ->  | D110: =IF(Eingabeblatt!B113="","",Eingabeblatt!B113) ->  | E110: =Eingabeblatt!R113 ->  | F110: =Eingabeblatt!Q113 -> 
A111: =IF(Eingabeblatt!C114="","",Eingabeblatt!C114) ->  | B111: =IF(Eingabeblatt!D114="","",Eingabeblatt!D114) ->  | C111: =IF(Eingabeblatt!E114="","",Eingabeblatt!E114) ->  | D111: =IF(Eingabeblatt!B114="","",Eingabeblatt!B114) ->  | E111: =Eingabeblatt!R114 ->  | F111: =Eingabeblatt!Q114 -> 
A112: =IF(Eingabeblatt!C115="","",Eingabeblatt!C115) ->  | B112: =IF(Eingabeblatt!D115="","",Eingabeblatt!D115) ->  | C112: =IF(Eingabeblatt!E115="","",Eingabeblatt!E115) ->  | D112: =IF(Eingabeblatt!B115="","",Eingabeblatt!B115) ->  | E112: =Eingabeblatt!R115 ->  | F112: =Eingabeblatt!Q115 -> 
A113: =IF(Eingabeblatt!C116="","",Eingabeblatt!C116) ->  | B113: =IF(Eingabeblatt!D116="","",Eingabeblatt!D116) ->  | C113: =IF(Eingabeblatt!E116="","",Eingabeblatt!E116) ->  | D113: =IF(Eingabeblatt!B116="","",Eingabeblatt!B116) ->  | E113: =Eingabeblatt!R116 ->  | F113: =Eingabeblatt!Q116 -> 
A114: =IF(Eingabeblatt!C117="","",Eingabeblatt!C117) ->  | B114: =IF(Eingabeblatt!D117="","",Eingabeblatt!D117) ->  | C114: =IF(Eingabeblatt!E117="","",Eingabeblatt!E117) ->  | D114: =IF(Eingabeblatt!B117="","",Eingabeblatt!B117) ->  | E114: =Eingabeblatt!R117 ->  | F114: =Eingabeblatt!Q117 -> 
A115: =IF(Eingabeblatt!C118="","",Eingabeblatt!C118) ->  | B115: =IF(Eingabeblatt!D118="","",Eingabeblatt!D118) ->  | C115: =IF(Eingabeblatt!E118="","",Eingabeblatt!E118) ->  | D115: =IF(Eingabeblatt!B118="","",Eingabeblatt!B118) ->  | E115: =Eingabeblatt!R118 ->  | F115: =Eingabeblatt!Q118 -> 
A116: =IF(Eingabeblatt!C119="","",Eingabeblatt!C119) ->  | B116: =IF(Eingabeblatt!D119="","",Eingabeblatt!D119) ->  | C116: =IF(Eingabeblatt!E119="","",Eingabeblatt!E119) ->  | D116: =IF(Eingabeblatt!B119="","",Eingabeblatt!B119) ->  | E116: =Eingabeblatt!R119 ->  | F116: =Eingabeblatt!Q119 -> 
A117: =IF(Eingabeblatt!C120="","",Eingabeblatt!C120) ->  | B117: =IF(Eingabeblatt!D120="","",Eingabeblatt!D120) ->  | C117: =IF(Eingabeblatt!E120="","",Eingabeblatt!E120) ->  | D117: =IF(Eingabeblatt!B120="","",Eingabeblatt!B120) ->  | E117: =Eingabeblatt!R120 ->  | F117: =Eingabeblatt!Q120 -> 
A118: =IF(Eingabeblatt!C121="","",Eingabeblatt!C121) ->  | B118: =IF(Eingabeblatt!D121="","",Eingabeblatt!D121) ->  | C118: =IF(Eingabeblatt!E121="","",Eingabeblatt!E121) ->  | D118: =IF(Eingabeblatt!B121="","",Eingabeblatt!B121) ->  | E118: =Eingabeblatt!R121 ->  | F118: =Eingabeblatt!Q121 -> 
A119: =IF(Eingabeblatt!C122="","",Eingabeblatt!C122) ->  | B119: =IF(Eingabeblatt!D122="","",Eingabeblatt!D122) ->  | C119: =IF(Eingabeblatt!E122="","",Eingabeblatt!E122) ->  | D119: =IF(Eingabeblatt!B122="","",Eingabeblatt!B122) ->  | E119: =Eingabeblatt!R122 ->  | F119: =Eingabeblatt!Q122 -> 
A120: =IF(Eingabeblatt!C123="","",Eingabeblatt!C123) ->  | B120: =IF(Eingabeblatt!D123="","",Eingabeblatt!D123) ->  | C120: =IF(Eingabeblatt!E123="","",Eingabeblatt!E123) ->  | D120: =IF(Eingabeblatt!B123="","",Eingabeblatt!B123) ->  | E120: =Eingabeblatt!R123 ->  | F120: =Eingabeblatt!Q123 -> 
A121: =IF(Eingabeblatt!C124="","",Eingabeblatt!C124) ->  | B121: =IF(Eingabeblatt!D124="","",Eingabeblatt!D124) ->  | C121: =IF(Eingabeblatt!E124="","",Eingabeblatt!E124) ->  | D121: =IF(Eingabeblatt!B124="","",Eingabeblatt!B124) ->  | E121: =Eingabeblatt!R124 ->  | F121: =Eingabeblatt!Q124 -> 
A122: =IF(Eingabeblatt!C125="","",Eingabeblatt!C125) ->  | B122: =IF(Eingabeblatt!D125="","",Eingabeblatt!D125) ->  | C122: =IF(Eingabeblatt!E125="","",Eingabeblatt!E125) ->  | D122: =IF(Eingabeblatt!B125="","",Eingabeblatt!B125) ->  | E122: =Eingabeblatt!R125 ->  | F122: =Eingabeblatt!Q125 -> 
A123: =IF(Eingabeblatt!C126="","",Eingabeblatt!C126) ->  | B123: =IF(Eingabeblatt!D126="","",Eingabeblatt!D126) ->  | C123: =IF(Eingabeblatt!E126="","",Eingabeblatt!E126) ->  | D123: =IF(Eingabeblatt!B126="","",Eingabeblatt!B126) ->  | E123: =Eingabeblatt!R126 ->  | F123: =Eingabeblatt!Q126 -> 
A124: =IF(Eingabeblatt!C127="","",Eingabeblatt!C127) ->  | B124: =IF(Eingabeblatt!D127="","",Eingabeblatt!D127) ->  | C124: =IF(Eingabeblatt!E127="","",Eingabeblatt!E127) ->  | D124: =IF(Eingabeblatt!B127="","",Eingabeblatt!B127) ->  | E124: =Eingabeblatt!R127 ->  | F124: =Eingabeblatt!Q127 -> 
A125: =IF(Eingabeblatt!C128="","",Eingabeblatt!C128) ->  | B125: =IF(Eingabeblatt!D128="","",Eingabeblatt!D128) ->  | C125: =IF(Eingabeblatt!E128="","",Eingabeblatt!E128) ->  | D125: =IF(Eingabeblatt!B128="","",Eingabeblatt!B128) ->  | E125: =Eingabeblatt!R128 ->  | F125: =Eingabeblatt!Q128 -> 
A126: =IF(Eingabeblatt!C129="","",Eingabeblatt!C129) ->  | B126: =IF(Eingabeblatt!D129="","",Eingabeblatt!D129) ->  | C126: =IF(Eingabeblatt!E129="","",Eingabeblatt!E129) ->  | D126: =IF(Eingabeblatt!B129="","",Eingabeblatt!B129) ->  | E126: =Eingabeblatt!R129 ->  | F126: =Eingabeblatt!Q129 -> 
A127: =IF(Eingabeblatt!C130="","",Eingabeblatt!C130) ->  | B127: =IF(Eingabeblatt!D130="","",Eingabeblatt!D130) ->  | C127: =IF(Eingabeblatt!E130="","",Eingabeblatt!E130) ->  | D127: =IF(Eingabeblatt!B130="","",Eingabeblatt!B130) ->  | E127: =Eingabeblatt!R130 ->  | F127: =Eingabeblatt!Q130 -> 
A128: =IF(Eingabeblatt!C131="","",Eingabeblatt!C131) ->  | B128: =IF(Eingabeblatt!D131="","",Eingabeblatt!D131) ->  | C128: =IF(Eingabeblatt!E131="","",Eingabeblatt!E131) ->  | D128: =IF(Eingabeblatt!B131="","",Eingabeblatt!B131) ->  | E128: =Eingabeblatt!R131 ->  | F128: =Eingabeblatt!Q131 -> 
A129: =IF(Eingabeblatt!C132="","",Eingabeblatt!C132) ->  | B129: =IF(Eingabeblatt!D132="","",Eingabeblatt!D132) ->  | C129: =IF(Eingabeblatt!E132="","",Eingabeblatt!E132) ->  | D129: =IF(Eingabeblatt!B132="","",Eingabeblatt!B132) ->  | E129: =Eingabeblatt!R132 ->  | F129: =Eingabeblatt!Q132 -> 
A130: =IF(Eingabeblatt!C133="","",Eingabeblatt!C133) ->  | B130: =IF(Eingabeblatt!D133="","",Eingabeblatt!D133) ->  | C130: =IF(Eingabeblatt!E133="","",Eingabeblatt!E133) ->  | D130: =IF(Eingabeblatt!B133="","",Eingabeblatt!B133) ->  | E130: =Eingabeblatt!R133 ->  | F130: =Eingabeblatt!Q133 -> 
A131: =IF(Eingabeblatt!C134="","",Eingabeblatt!C134) ->  | B131: =IF(Eingabeblatt!D134="","",Eingabeblatt!D134) ->  | C131: =IF(Eingabeblatt!E134="","",Eingabeblatt!E134) ->  | D131: =IF(Eingabeblatt!B134="","",Eingabeblatt!B134) ->  | E131: =Eingabeblatt!R134 ->  | F131: =Eingabeblatt!Q134 -> 
A132: =IF(Eingabeblatt!C135="","",Eingabeblatt!C135) ->  | B132: =IF(Eingabeblatt!D135="","",Eingabeblatt!D135) ->  | C132: =IF(Eingabeblatt!E135="","",Eingabeblatt!E135) ->  | D132: =IF(Eingabeblatt!B135="","",Eingabeblatt!B135) ->  | E132: =Eingabeblatt!R135 ->  | F132: =Eingabeblatt!Q135 -> 
A133: =IF(Eingabeblatt!C136="","",Eingabeblatt!C136) ->  | B133: =IF(Eingabeblatt!D136="","",Eingabeblatt!D136) ->  | C133: =IF(Eingabeblatt!E136="","",Eingabeblatt!E136) ->  | D133: =IF(Eingabeblatt!B136="","",Eingabeblatt!B136) ->  | E133: =Eingabeblatt!R136 ->  | F133: =Eingabeblatt!Q136 -> 
A134: =IF(Eingabeblatt!C137="","",Eingabeblatt!C137) ->  | B134: =IF(Eingabeblatt!D137="","",Eingabeblatt!D137) ->  | C134: =IF(Eingabeblatt!E137="","",Eingabeblatt!E137) ->  | D134: =IF(Eingabeblatt!B137="","",Eingabeblatt!B137) ->  | E134: =Eingabeblatt!R137 ->  | F134: =Eingabeblatt!Q137 -> 
A135: =IF(Eingabeblatt!C138="","",Eingabeblatt!C138) ->  | B135: =IF(Eingabeblatt!D138="","",Eingabeblatt!D138) ->  | C135: =IF(Eingabeblatt!E138="","",Eingabeblatt!E138) ->  | D135: =IF(Eingabeblatt!B138="","",Eingabeblatt!B138) ->  | E135: =Eingabeblatt!R138 ->  | F135: =Eingabeblatt!Q138 -> 
A136: =IF(Eingabeblatt!C139="","",Eingabeblatt!C139) ->  | B136: =IF(Eingabeblatt!D139="","",Eingabeblatt!D139) ->  | C136: =IF(Eingabeblatt!E139="","",Eingabeblatt!E139) ->  | D136: =IF(Eingabeblatt!B139="","",Eingabeblatt!B139) ->  | E136: =Eingabeblatt!R139 ->  | F136: =Eingabeblatt!Q139 -> 
A137: =IF(Eingabeblatt!C140="","",Eingabeblatt!C140) ->  | B137: =IF(Eingabeblatt!D140="","",Eingabeblatt!D140) ->  | C137: =IF(Eingabeblatt!E140="","",Eingabeblatt!E140) ->  | D137: =IF(Eingabeblatt!B140="","",Eingabeblatt!B140) ->  | E137: =Eingabeblatt!R140 ->  | F137: =Eingabeblatt!Q140 -> 
A138: =IF(Eingabeblatt!C141="","",Eingabeblatt!C141) ->  | B138: =IF(Eingabeblatt!D141="","",Eingabeblatt!D141) ->  | C138: =IF(Eingabeblatt!E141="","",Eingabeblatt!E141) ->  | D138: =IF(Eingabeblatt!B141="","",Eingabeblatt!B141) ->  | E138: =Eingabeblatt!R141 ->  | F138: =Eingabeblatt!Q141 -> 
A139: =IF(Eingabeblatt!C142="","",Eingabeblatt!C142) ->  | B139: =IF(Eingabeblatt!D142="","",Eingabeblatt!D142) ->  | C139: =IF(Eingabeblatt!E142="","",Eingabeblatt!E142) ->  | D139: =IF(Eingabeblatt!B142="","",Eingabeblatt!B142) ->  | E139: =Eingabeblatt!R142 ->  | F139: =Eingabeblatt!Q142 -> 
A140: =IF(Eingabeblatt!C143="","",Eingabeblatt!C143) ->  | B140: =IF(Eingabeblatt!D143="","",Eingabeblatt!D143) ->  | C140: =IF(Eingabeblatt!E143="","",Eingabeblatt!E143) ->  | D140: =IF(Eingabeblatt!B143="","",Eingabeblatt!B143) ->  | E140: =Eingabeblatt!R143 ->  | F140: =Eingabeblatt!Q143 -> 
A141: =IF(Eingabeblatt!C144="","",Eingabeblatt!C144) ->  | B141: =IF(Eingabeblatt!D144="","",Eingabeblatt!D144) ->  | C141: =IF(Eingabeblatt!E144="","",Eingabeblatt!E144) ->  | D141: =IF(Eingabeblatt!B144="","",Eingabeblatt!B144) ->  | E141: =Eingabeblatt!R144 ->  | F141: =Eingabeblatt!Q144 -> 
A142: =IF(Eingabeblatt!C145="","",Eingabeblatt!C145) ->  | B142: =IF(Eingabeblatt!D145="","",Eingabeblatt!D145) ->  | C142: =IF(Eingabeblatt!E145="","",Eingabeblatt!E145) ->  | D142: =IF(Eingabeblatt!B145="","",Eingabeblatt!B145) ->  | E142: =Eingabeblatt!R145 ->  | F142: =Eingabeblatt!Q145 -> 
A143: =IF(Eingabeblatt!C146="","",Eingabeblatt!C146) ->  | B143: =IF(Eingabeblatt!D146="","",Eingabeblatt!D146) ->  | C143: =IF(Eingabeblatt!E146="","",Eingabeblatt!E146) ->  | D143: =IF(Eingabeblatt!B146="","",Eingabeblatt!B146) ->  | E143: =Eingabeblatt!R146 ->  | F143: =Eingabeblatt!Q146 -> 
A144: =IF(Eingabeblatt!C147="","",Eingabeblatt!C147) ->  | B144: =IF(Eingabeblatt!D147="","",Eingabeblatt!D147) ->  | C144: =IF(Eingabeblatt!E147="","",Eingabeblatt!E147) ->  | D144: =IF(Eingabeblatt!B147="","",Eingabeblatt!B147) ->  | E144: =Eingabeblatt!R147 ->  | F144: =Eingabeblatt!Q147 -> 
A145: =IF(Eingabeblatt!C148="","",Eingabeblatt!C148) ->  | B145: =IF(Eingabeblatt!D148="","",Eingabeblatt!D148) ->  | C145: =IF(Eingabeblatt!E148="","",Eingabeblatt!E148) ->  | D145: =IF(Eingabeblatt!B148="","",Eingabeblatt!B148) ->  | E145: =Eingabeblatt!R148 ->  | F145: =Eingabeblatt!Q148 -> 
A146: =IF(Eingabeblatt!C149="","",Eingabeblatt!C149) ->  | B146: =IF(Eingabeblatt!D149="","",Eingabeblatt!D149) ->  | C146: =IF(Eingabeblatt!E149="","",Eingabeblatt!E149) ->  | D146: =IF(Eingabeblatt!B149="","",Eingabeblatt!B149) ->  | E146: =Eingabeblatt!R149 ->  | F146: =Eingabeblatt!Q149 -> 
A147: =IF(Eingabeblatt!C150="","",Eingabeblatt!C150) ->  | B147: =IF(Eingabeblatt!D150="","",Eingabeblatt!D150) ->  | C147: =IF(Eingabeblatt!E150="","",Eingabeblatt!E150) ->  | D147: =IF(Eingabeblatt!B150="","",Eingabeblatt!B150) ->  | E147: =Eingabeblatt!R150 ->  | F147: =Eingabeblatt!Q150 -> 
A148: =IF(Eingabeblatt!C151="","",Eingabeblatt!C151) ->  | B148: =IF(Eingabeblatt!D151="","",Eingabeblatt!D151) ->  | C148: =IF(Eingabeblatt!E151="","",Eingabeblatt!E151) ->  | D148: =IF(Eingabeblatt!B151="","",Eingabeblatt!B151) ->  | E148: =Eingabeblatt!R151 ->  | F148: =Eingabeblatt!Q151 -> 
A149: =IF(Eingabeblatt!C152="","",Eingabeblatt!C152) ->  | B149: =IF(Eingabeblatt!D152="","",Eingabeblatt!D152) ->  | C149: =IF(Eingabeblatt!E152="","",Eingabeblatt!E152) ->  | D149: =IF(Eingabeblatt!B152="","",Eingabeblatt!B152) ->  | E149: =Eingabeblatt!R152 ->  | F149: =Eingabeblatt!Q152 -> 
A150: =IF(Eingabeblatt!C153="","",Eingabeblatt!C153) ->  | B150: =IF(Eingabeblatt!D153="","",Eingabeblatt!D153) ->  | C150: =IF(Eingabeblatt!E153="","",Eingabeblatt!E153) ->  | D150: =IF(Eingabeblatt!B153="","",Eingabeblatt!B153) ->  | E150: =Eingabeblatt!R153 ->  | F150: =Eingabeblatt!Q153 -> 
A151: =IF(Eingabeblatt!C154="","",Eingabeblatt!C154) ->  | B151: =IF(Eingabeblatt!D154="","",Eingabeblatt!D154) ->  | C151: =IF(Eingabeblatt!E154="","",Eingabeblatt!E154) ->  | D151: =IF(Eingabeblatt!B154="","",Eingabeblatt!B154) ->  | E151: =Eingabeblatt!R154 ->  | F151: =Eingabeblatt!Q154 -> 
A152: =IF(Eingabeblatt!C155="","",Eingabeblatt!C155) ->  | B152: =IF(Eingabeblatt!D155="","",Eingabeblatt!D155) ->  | C152: =IF(Eingabeblatt!E155="","",Eingabeblatt!E155) ->  | D152: =IF(Eingabeblatt!B155="","",Eingabeblatt!B155) ->  | E152: =Eingabeblatt!R155 ->  | F152: =Eingabeblatt!Q155 -> 
A153: =IF(Eingabeblatt!C156="","",Eingabeblatt!C156) ->  | B153: =IF(Eingabeblatt!D156="","",Eingabeblatt!D156) ->  | C153: =IF(Eingabeblatt!E156="","",Eingabeblatt!E156) ->  | D153: =IF(Eingabeblatt!B156="","",Eingabeblatt!B156) ->  | E153: =Eingabeblatt!R156 ->  | F153: =Eingabeblatt!Q156 -> 
A154: =IF(Eingabeblatt!C157="","",Eingabeblatt!C157) ->  | B154: =IF(Eingabeblatt!D157="","",Eingabeblatt!D157) ->  | C154: =IF(Eingabeblatt!E157="","",Eingabeblatt!E157) ->  | D154: =IF(Eingabeblatt!B157="","",Eingabeblatt!B157) ->  | E154: =Eingabeblatt!R157 ->  | F154: =Eingabeblatt!Q157 -> 
A155: =IF(Eingabeblatt!C158="","",Eingabeblatt!C158) ->  | B155: =IF(Eingabeblatt!D158="","",Eingabeblatt!D158) ->  | C155: =IF(Eingabeblatt!E158="","",Eingabeblatt!E158) ->  | D155: =IF(Eingabeblatt!B158="","",Eingabeblatt!B158) ->  | E155: =Eingabeblatt!R158 ->  | F155: =Eingabeblatt!Q158 -> 
A156: =IF(Eingabeblatt!C159="","",Eingabeblatt!C159) ->  | B156: =IF(Eingabeblatt!D159="","",Eingabeblatt!D159) ->  | C156: =IF(Eingabeblatt!E159="","",Eingabeblatt!E159) ->  | D156: =IF(Eingabeblatt!B159="","",Eingabeblatt!B159) ->  | E156: =Eingabeblatt!R159 ->  | F156: =Eingabeblatt!Q159 -> 
A157: =IF(Eingabeblatt!C160="","",Eingabeblatt!C160) ->  | B157: =IF(Eingabeblatt!D160="","",Eingabeblatt!D160) ->  | C157: =IF(Eingabeblatt!E160="","",Eingabeblatt!E160) ->  | D157: =IF(Eingabeblatt!B160="","",Eingabeblatt!B160) ->  | E157: =Eingabeblatt!R160 ->  | F157: =Eingabeblatt!Q160 -> 
A158: =IF(Eingabeblatt!C161="","",Eingabeblatt!C161) ->  | B158: =IF(Eingabeblatt!D161="","",Eingabeblatt!D161) ->  | C158: =IF(Eingabeblatt!E161="","",Eingabeblatt!E161) ->  | D158: =IF(Eingabeblatt!B161="","",Eingabeblatt!B161) ->  | E158: =Eingabeblatt!R161 ->  | F158: =Eingabeblatt!Q161 -> 
A159: =IF(Eingabeblatt!C162="","",Eingabeblatt!C162) ->  | B159: =IF(Eingabeblatt!D162="","",Eingabeblatt!D162) ->  | C159: =IF(Eingabeblatt!E162="","",Eingabeblatt!E162) ->  | D159: =IF(Eingabeblatt!B162="","",Eingabeblatt!B162) ->  | E159: =Eingabeblatt!R162 ->  | F159: =Eingabeblatt!Q162 -> 
A160: =IF(Eingabeblatt!C163="","",Eingabeblatt!C163) ->  | B160: =IF(Eingabeblatt!D163="","",Eingabeblatt!D163) ->  | C160: =IF(Eingabeblatt!E163="","",Eingabeblatt!E163) ->  | D160: =IF(Eingabeblatt!B163="","",Eingabeblatt!B163) ->  | E160: =Eingabeblatt!R163 ->  | F160: =Eingabeblatt!Q163 -> 
A161: =IF(Eingabeblatt!C164="","",Eingabeblatt!C164) ->  | B161: =IF(Eingabeblatt!D164="","",Eingabeblatt!D164) ->  | C161: =IF(Eingabeblatt!E164="","",Eingabeblatt!E164) ->  | D161: =IF(Eingabeblatt!B164="","",Eingabeblatt!B164) ->  | E161: =Eingabeblatt!R164 ->  | F161: =Eingabeblatt!Q164 -> 
A162: =IF(Eingabeblatt!C165="","",Eingabeblatt!C165) ->  | B162: =IF(Eingabeblatt!D165="","",Eingabeblatt!D165) ->  | C162: =IF(Eingabeblatt!E165="","",Eingabeblatt!E165) ->  | D162: =IF(Eingabeblatt!B165="","",Eingabeblatt!B165) ->  | E162: =Eingabeblatt!R165 ->  | F162: =Eingabeblatt!Q165 -> 
A163: =IF(Eingabeblatt!C166="","",Eingabeblatt!C166) ->  | B163: =IF(Eingabeblatt!D166="","",Eingabeblatt!D166) ->  | C163: =IF(Eingabeblatt!E166="","",Eingabeblatt!E166) ->  | D163: =IF(Eingabeblatt!B166="","",Eingabeblatt!B166) ->  | E163: =Eingabeblatt!R166 ->  | F163: =Eingabeblatt!Q166 -> 
A164: =IF(Eingabeblatt!C167="","",Eingabeblatt!C167) ->  | B164: =IF(Eingabeblatt!D167="","",Eingabeblatt!D167) ->  | C164: =IF(Eingabeblatt!E167="","",Eingabeblatt!E167) ->  | D164: =IF(Eingabeblatt!B167="","",Eingabeblatt!B167) ->  | E164: =Eingabeblatt!R167 ->  | F164: =Eingabeblatt!Q167 -> 
A165: =IF(Eingabeblatt!C168="","",Eingabeblatt!C168) ->  | B165: =IF(Eingabeblatt!D168="","",Eingabeblatt!D168) ->  | C165: =IF(Eingabeblatt!E168="","",Eingabeblatt!E168) ->  | D165: =IF(Eingabeblatt!B168="","",Eingabeblatt!B168) ->  | E165: =Eingabeblatt!R168 ->  | F165: =Eingabeblatt!Q168 -> 
A166: =IF(Eingabeblatt!C169="","",Eingabeblatt!C169) ->  | B166: =IF(Eingabeblatt!D169="","",Eingabeblatt!D169) ->  | C166: =IF(Eingabeblatt!E169="","",Eingabeblatt!E169) ->  | D166: =IF(Eingabeblatt!B169="","",Eingabeblatt!B169) ->  | E166: =Eingabeblatt!R169 ->  | F166: =Eingabeblatt!Q169 -> 
A167: =IF(Eingabeblatt!C170="","",Eingabeblatt!C170) ->  | B167: =IF(Eingabeblatt!D170="","",Eingabeblatt!D170) ->  | C167: =IF(Eingabeblatt!E170="","",Eingabeblatt!E170) ->  | D167: =IF(Eingabeblatt!B170="","",Eingabeblatt!B170) ->  | E167: =Eingabeblatt!R170 ->  | F167: =Eingabeblatt!Q170 -> 
A168: =IF(Eingabeblatt!C171="","",Eingabeblatt!C171) ->  | B168: =IF(Eingabeblatt!D171="","",Eingabeblatt!D171) ->  | C168: =IF(Eingabeblatt!E171="","",Eingabeblatt!E171) ->  | D168: =IF(Eingabeblatt!B171="","",Eingabeblatt!B171) ->  | E168: =Eingabeblatt!R171 ->  | F168: =Eingabeblatt!Q171 -> 
A169: =IF(Eingabeblatt!C172="","",Eingabeblatt!C172) ->  | B169: =IF(Eingabeblatt!D172="","",Eingabeblatt!D172) ->  | C169: =IF(Eingabeblatt!E172="","",Eingabeblatt!E172) ->  | D169: =IF(Eingabeblatt!B172="","",Eingabeblatt!B172) ->  | E169: =Eingabeblatt!R172 ->  | F169: =Eingabeblatt!Q172 -> 
A170: =IF(Eingabeblatt!C173="","",Eingabeblatt!C173) ->  | B170: =IF(Eingabeblatt!D173="","",Eingabeblatt!D173) ->  | C170: =IF(Eingabeblatt!E173="","",Eingabeblatt!E173) ->  | D170: =IF(Eingabeblatt!B173="","",Eingabeblatt!B173) ->  | E170: =Eingabeblatt!R173 ->  | F170: =Eingabeblatt!Q173 -> 
A171: =IF(Eingabeblatt!C174="","",Eingabeblatt!C174) ->  | B171: =IF(Eingabeblatt!D174="","",Eingabeblatt!D174) ->  | C171: =IF(Eingabeblatt!E174="","",Eingabeblatt!E174) ->  | D171: =IF(Eingabeblatt!B174="","",Eingabeblatt!B174) ->  | E171: =Eingabeblatt!R174 ->  | F171: =Eingabeblatt!Q174 -> 
A172: =IF(Eingabeblatt!C175="","",Eingabeblatt!C175) ->  | B172: =IF(Eingabeblatt!D175="","",Eingabeblatt!D175) ->  | C172: =IF(Eingabeblatt!E175="","",Eingabeblatt!E175) ->  | D172: =IF(Eingabeblatt!B175="","",Eingabeblatt!B175) ->  | E172: =Eingabeblatt!R175 ->  | F172: =Eingabeblatt!Q175 -> 
A173: =IF(Eingabeblatt!C176="","",Eingabeblatt!C176) ->  | B173: =IF(Eingabeblatt!D176="","",Eingabeblatt!D176) ->  | C173: =IF(Eingabeblatt!E176="","",Eingabeblatt!E176) ->  | D173: =IF(Eingabeblatt!B176="","",Eingabeblatt!B176) ->  | E173: =Eingabeblatt!R176 ->  | F173: =Eingabeblatt!Q176 -> 
A174: =IF(Eingabeblatt!C177="","",Eingabeblatt!C177) ->  | B174: =IF(Eingabeblatt!D177="","",Eingabeblatt!D177) ->  | C174: =IF(Eingabeblatt!E177="","",Eingabeblatt!E177) ->  | D174: =IF(Eingabeblatt!B177="","",Eingabeblatt!B177) ->  | E174: =Eingabeblatt!R177 ->  | F174: =Eingabeblatt!Q177 -> 
A175: =IF(Eingabeblatt!C178="","",Eingabeblatt!C178) ->  | B175: =IF(Eingabeblatt!D178="","",Eingabeblatt!D178) ->  | C175: =IF(Eingabeblatt!E178="","",Eingabeblatt!E178) ->  | D175: =IF(Eingabeblatt!B178="","",Eingabeblatt!B178) ->  | E175: =Eingabeblatt!R178 ->  | F175: =Eingabeblatt!Q178 -> 
A176: =IF(Eingabeblatt!C179="","",Eingabeblatt!C179) ->  | B176: =IF(Eingabeblatt!D179="","",Eingabeblatt!D179) ->  | C176: =IF(Eingabeblatt!E179="","",Eingabeblatt!E179) ->  | D176: =IF(Eingabeblatt!B179="","",Eingabeblatt!B179) ->  | E176: =Eingabeblatt!R179 ->  | F176: =Eingabeblatt!Q179 -> 
A177: =IF(Eingabeblatt!C180="","",Eingabeblatt!C180) ->  | B177: =IF(Eingabeblatt!D180="","",Eingabeblatt!D180) ->  | C177: =IF(Eingabeblatt!E180="","",Eingabeblatt!E180) ->  | D177: =IF(Eingabeblatt!B180="","",Eingabeblatt!B180) ->  | E177: =Eingabeblatt!R180 ->  | F177: =Eingabeblatt!Q180 -> 
A178: =IF(Eingabeblatt!C181="","",Eingabeblatt!C181) ->  | B178: =IF(Eingabeblatt!D181="","",Eingabeblatt!D181) ->  | C178: =IF(Eingabeblatt!E181="","",Eingabeblatt!E181) ->  | D178: =IF(Eingabeblatt!B181="","",Eingabeblatt!B181) ->  | E178: =Eingabeblatt!R181 ->  | F178: =Eingabeblatt!Q181 -> 
A179: =IF(Eingabeblatt!C182="","",Eingabeblatt!C182) ->  | B179: =IF(Eingabeblatt!D182="","",Eingabeblatt!D182) ->  | C179: =IF(Eingabeblatt!E182="","",Eingabeblatt!E182) ->  | D179: =IF(Eingabeblatt!B182="","",Eingabeblatt!B182) ->  | E179: =Eingabeblatt!R182 ->  | F179: =Eingabeblatt!Q182 -> 
A180: =IF(Eingabeblatt!C183="","",Eingabeblatt!C183) ->  | B180: =IF(Eingabeblatt!D183="","",Eingabeblatt!D183) ->  | C180: =IF(Eingabeblatt!E183="","",Eingabeblatt!E183) ->  | D180: =IF(Eingabeblatt!B183="","",Eingabeblatt!B183) ->  | E180: =Eingabeblatt!R183 ->  | F180: =Eingabeblatt!Q183 -> 
A181: =IF(Eingabeblatt!C184="","",Eingabeblatt!C184) ->  | B181: =IF(Eingabeblatt!D184="","",Eingabeblatt!D184) ->  | C181: =IF(Eingabeblatt!E184="","",Eingabeblatt!E184) ->  | D181: =IF(Eingabeblatt!B184="","",Eingabeblatt!B184) ->  | E181: =Eingabeblatt!R184 ->  | F181: =Eingabeblatt!Q184 -> 
A182: =IF(Eingabeblatt!C185="","",Eingabeblatt!C185) ->  | B182: =IF(Eingabeblatt!D185="","",Eingabeblatt!D185) ->  | C182: =IF(Eingabeblatt!E185="","",Eingabeblatt!E185) ->  | D182: =IF(Eingabeblatt!B185="","",Eingabeblatt!B185) ->  | E182: =Eingabeblatt!R185 ->  | F182: =Eingabeblatt!Q185 -> 
A183: =IF(Eingabeblatt!C186="","",Eingabeblatt!C186) ->  | B183: =IF(Eingabeblatt!D186="","",Eingabeblatt!D186) ->  | C183: =IF(Eingabeblatt!E186="","",Eingabeblatt!E186) ->  | D183: =IF(Eingabeblatt!B186="","",Eingabeblatt!B186) ->  | E183: =Eingabeblatt!R186 ->  | F183: =Eingabeblatt!Q186 -> 
A184: =IF(Eingabeblatt!C187="","",Eingabeblatt!C187) ->  | B184: =IF(Eingabeblatt!D187="","",Eingabeblatt!D187) ->  | C184: =IF(Eingabeblatt!E187="","",Eingabeblatt!E187) ->  | D184: =IF(Eingabeblatt!B187="","",Eingabeblatt!B187) ->  | E184: =Eingabeblatt!R187 ->  | F184: =Eingabeblatt!Q187 -> 
A185: =IF(Eingabeblatt!C188="","",Eingabeblatt!C188) ->  | B185: =IF(Eingabeblatt!D188="","",Eingabeblatt!D188) ->  | C185: =IF(Eingabeblatt!E188="","",Eingabeblatt!E188) ->  | D185: =IF(Eingabeblatt!B188="","",Eingabeblatt!B188) ->  | E185: =Eingabeblatt!R188 ->  | F185: =Eingabeblatt!Q188 -> 
A186: =IF(Eingabeblatt!C189="","",Eingabeblatt!C189) ->  | B186: =IF(Eingabeblatt!D189="","",Eingabeblatt!D189) ->  | C186: =IF(Eingabeblatt!E189="","",Eingabeblatt!E189) ->  | D186: =IF(Eingabeblatt!B189="","",Eingabeblatt!B189) ->  | E186: =Eingabeblatt!R189 ->  | F186: =Eingabeblatt!Q189 -> 
A187: =IF(Eingabeblatt!C190="","",Eingabeblatt!C190) ->  | B187: =IF(Eingabeblatt!D190="","",Eingabeblatt!D190) ->  | C187: =IF(Eingabeblatt!E190="","",Eingabeblatt!E190) ->  | D187: =IF(Eingabeblatt!B190="","",Eingabeblatt!B190) ->  | E187: =Eingabeblatt!R190 ->  | F187: =Eingabeblatt!Q190 -> 
A188: =IF(Eingabeblatt!C191="","",Eingabeblatt!C191) ->  | B188: =IF(Eingabeblatt!D191="","",Eingabeblatt!D191) ->  | C188: =IF(Eingabeblatt!E191="","",Eingabeblatt!E191) ->  | D188: =IF(Eingabeblatt!B191="","",Eingabeblatt!B191) ->  | E188: =Eingabeblatt!R191 ->  | F188: =Eingabeblatt!Q191 -> 
A189: =IF(Eingabeblatt!C192="","",Eingabeblatt!C192) ->  | B189: =IF(Eingabeblatt!D192="","",Eingabeblatt!D192) ->  | C189: =IF(Eingabeblatt!E192="","",Eingabeblatt!E192) ->  | D189: =IF(Eingabeblatt!B192="","",Eingabeblatt!B192) ->  | E189: =Eingabeblatt!R192 ->  | F189: =Eingabeblatt!Q192 -> 
A190: =IF(Eingabeblatt!C193="","",Eingabeblatt!C193) ->  | B190: =IF(Eingabeblatt!D193="","",Eingabeblatt!D193) ->  | C190: =IF(Eingabeblatt!E193="","",Eingabeblatt!E193) ->  | D190: =IF(Eingabeblatt!B193="","",Eingabeblatt!B193) ->  | E190: =Eingabeblatt!R193 ->  | F190: =Eingabeblatt!Q193 -> 
A191: =IF(Eingabeblatt!C194="","",Eingabeblatt!C194) ->  | B191: =IF(Eingabeblatt!D194="","",Eingabeblatt!D194) ->  | C191: =IF(Eingabeblatt!E194="","",Eingabeblatt!E194) ->  | D191: =IF(Eingabeblatt!B194="","",Eingabeblatt!B194) ->  | E191: =Eingabeblatt!R194 ->  | F191: =Eingabeblatt!Q194 -> 
A192: =IF(Eingabeblatt!C195="","",Eingabeblatt!C195) ->  | B192: =IF(Eingabeblatt!D195="","",Eingabeblatt!D195) ->  | C192: =IF(Eingabeblatt!E195="","",Eingabeblatt!E195) ->  | D192: =IF(Eingabeblatt!B195="","",Eingabeblatt!B195) ->  | E192: =Eingabeblatt!R195 ->  | F192: =Eingabeblatt!Q195 -> 
A193: =IF(Eingabeblatt!C196="","",Eingabeblatt!C196) ->  | B193: =IF(Eingabeblatt!D196="","",Eingabeblatt!D196) ->  | C193: =IF(Eingabeblatt!E196="","",Eingabeblatt!E196) ->  | D193: =IF(Eingabeblatt!B196="","",Eingabeblatt!B196) ->  | E193: =Eingabeblatt!R196 ->  | F193: =Eingabeblatt!Q196 -> 
A194: =IF(Eingabeblatt!C197="","",Eingabeblatt!C197) ->  | B194: =IF(Eingabeblatt!D197="","",Eingabeblatt!D197) ->  | C194: =IF(Eingabeblatt!E197="","",Eingabeblatt!E197) ->  | D194: =IF(Eingabeblatt!B197="","",Eingabeblatt!B197) ->  | E194: =Eingabeblatt!R197 ->  | F194: =Eingabeblatt!Q197 -> 
A195: =IF(Eingabeblatt!C198="","",Eingabeblatt!C198) ->  | B195: =IF(Eingabeblatt!D198="","",Eingabeblatt!D198) ->  | C195: =IF(Eingabeblatt!E198="","",Eingabeblatt!E198) ->  | D195: =IF(Eingabeblatt!B198="","",Eingabeblatt!B198) ->  | E195: =Eingabeblatt!R198 ->  | F195: =Eingabeblatt!Q198 -> 
A196: =IF(Eingabeblatt!C199="","",Eingabeblatt!C199) ->  | B196: =IF(Eingabeblatt!D199="","",Eingabeblatt!D199) ->  | C196: =IF(Eingabeblatt!E199="","",Eingabeblatt!E199) ->  | D196: =IF(Eingabeblatt!B199="","",Eingabeblatt!B199) ->  | E196: =Eingabeblatt!R199 ->  | F196: =Eingabeblatt!Q199 -> 
A197: =IF(Eingabeblatt!C200="","",Eingabeblatt!C200) ->  | B197: =IF(Eingabeblatt!D200="","",Eingabeblatt!D200) ->  | C197: =IF(Eingabeblatt!E200="","",Eingabeblatt!E200) ->  | D197: =IF(Eingabeblatt!B200="","",Eingabeblatt!B200) ->  | E197: =Eingabeblatt!R200 ->  | F197: =Eingabeblatt!Q200 -> 
A198: =IF(Eingabeblatt!C201="","",Eingabeblatt!C201) ->  | B198: =IF(Eingabeblatt!D201="","",Eingabeblatt!D201) ->  | C198: =IF(Eingabeblatt!E201="","",Eingabeblatt!E201) ->  | D198: =IF(Eingabeblatt!B201="","",Eingabeblatt!B201) ->  | E198: =Eingabeblatt!R201 ->  | F198: =Eingabeblatt!Q201 -> 
A199: =IF(Eingabeblatt!C202="","",Eingabeblatt!C202) ->  | B199: =IF(Eingabeblatt!D202="","",Eingabeblatt!D202) ->  | C199: =IF(Eingabeblatt!E202="","",Eingabeblatt!E202) ->  | D199: =IF(Eingabeblatt!B202="","",Eingabeblatt!B202) ->  | E199: =Eingabeblatt!R202 ->  | F199: =Eingabeblatt!Q202 -> 
A200: =IF(Eingabeblatt!C203="","",Eingabeblatt!C203) ->  | B200: =IF(Eingabeblatt!D203="","",Eingabeblatt!D203) ->  | C200: =IF(Eingabeblatt!E203="","",Eingabeblatt!E203) ->  | D200: =IF(Eingabeblatt!B203="","",Eingabeblatt!B203) ->  | E200: =Eingabeblatt!R203 ->  | F200: =Eingabeblatt!Q203 -> 
... 297 more rows

Sheet Berechnung_Male (hidden)
A1: Year from PHV | B1: early | C1: average | D1: late
A2: -4 | B2: 45.29 | C2: 40.09 | D2: 34.73 | F2: männlich
A3: -3.8 | B3: 44.21 | C3: 39.08 | D3: 33.83
A4: -3.6 | B4: 43.11 | C4: 38.07 | D4: 32.94
A5: -3.4 | B5: 41.99 | C5: 37.06 | D5: 32.05
A6: -3.2 | B6: 40.85 | C6: 36.05 | D6: 31.16
A7: -3 | B7: 39.69 | C7: 35.04 | D7: 30.27
A8: -2.8 | B8: 38.52 | C8: 34.04 | D8: 29.38
A9: -2.6 | B9: 37.33 | C9: 33.05 | D9: 28.49
A10: -2.4 | B10: 36.15 | C10: 32.06 | D10: 27.6
A11: -2.2 | B11: 34.97 | C11: 31.07 | D11: 26.7
A12: -2 | B12: 33.8 | C12: 30.06 | D12: 25.77
A13: -1.8 | B13: 32.62 | C13: 29.03 | D13: 24.79
A14: -1.6 | B14: 31.44 | C14: 27.95 | D14: 23.74
A15: -1.4 | B15: 30.23 | C15: 26.83 | D15: 22.63
A16: -1.2 | B16: 28.98 | C16: 25.63 | D16: 21.45
A17: -1 | B17: 27.66 | C17: 24.36 | D17: 20.22
A18: -0.8 | B18: 26.24 | C18: 22.99 | D18: 18.96
A19: -0.6 | B19: 24.68 | C19: 21.51 | D19: 17.68
A20: -0.4 | B20: 22.96 | C20: 19.88 | D20: 16.31
A21: -0.2 | B21: 21.07 | C21: 18.09 | D21: 14.76
A22: 0 | B22: 19.04 | C22: 16.16 | D22: 13.05
A23: 0.2 | B23: 16.96 | C23: 14.21 | D23: 11.32
A24: 0.4 | B24: 14.92 | C24: 12.35 | D24: 9.71
A25: 0.6 | B25: 13.01 | C25: 10.65 | D25: 8.27
A26: 0.8 | B26: 11.26 | C26: 9.12 | D26: 6.94
A27: 1 | B27: 9.7 | C27: 7.78 | D27: 5.7
A28: 1.2 | B28: 8.33 | C28: 6.59 | D28: 4.54
A29: 1.4 | B29: 7.11 | C29: 5.54 | D29: 3.51
A30: 1.6 | B30: 6.04 | C30: 4.62 | D30: 2.64
A31: 1.8 | B31: 5.1 | C31: 3.8 | D31: 1.92
A32: 2 | B32: 4.26 | C32: 3.09 | D32: 1.35
A33: 2.2 | B33: 3.52 | C33: 2.48 | D33: 0.91
A34: 2.4 | B34: 2.86 | C34: 1.96 | D34: 0.58
A35: 2.6 | B35: 2.29 | C35: 1.52 | D35: 0.32
A36: 2.8 | B36: 1.78 | C36: 1.16 | D36: 0.13
A37: 3 | B37: 1.34 | C37: 0.87 | D37: 0
A38: 3.2 | B38: 0.96 | C38: 0.63 | D38: 0
A39: 3.4 | B39: 0.64 | C39: 0.43 | D39: 0
A40: 3.6 | B40: 0.37 | C40: 0.27 | D40: 0
A41: 3.8 | B41: 0.16 | C41: 0.12 | D41: 0
A42: 4 | B42: 0 | C42: 0 | D42: 0
A45: Alter | B45: =(#REF!-#REF!)/365 ->  | D45: Maturity offset | E45: =-9.236+(0.0002708*B46*#REF!)+(-0.001663*B45*B46)+(0.007216*B45*#REF!)+(0.02292*(#REF!/#REF!)*100) -> 
A46: Beinlänge | B46: =#REF!-#REF! ->  | D46: PHV | E46: =B45-E45 -> 
D47: Spaltenangabe Tabelle | E47: =IF(E46<13,2,IF(E46<15,3,4)) -> 
A49: Wachstumsreserve | B49: =VLOOKUP(Berechnung_Male!$E$45,Berechnung_Male!$A$1:$D$42,Berechnung_Male!$E$47,TRUE) -> 
A52: =Eingabeblatt!Q5=IF(Berechnung_Male!$E$46<13,"Früh entwickelt.",IF(Berechnung_Male!$E$46<=13.5,"Möglicherweise früh entwickelt.",IF(Berechnung_Male!$E$46>15,"Spät entwickelt.",IF(Berechnung_Male!$E$46>=14.5,"Möglicherweise spät entwickelt.","Durchschnittlich entwickelt.")))) -> 
A55: =IF(Berechnung_Male!$E$46<13,"Der biologische Entwicklungstand des Athleten ist wahrscheinlich beschleunigt; Dh. im Vergleich mit Gleichalterigen wird seine Leistung ev. überschätzt! ",IF(Berechnung_Male!$E$46<=13.5,"Der biologische Entwicklungstand des Athleten ist möglicherweise beschleunigt; Dh. im Vergleich mit Gleichalterigen wird seine Leistung möglicherweise überschätzt! ",IF(Berechnung_Male!$E$46>15,"Der biologische Entwicklungsstand des Athleten ist wahrscheinlich verzögert; Dh. im Vergleich mit Gleichalterigen wird seine Leistung ev. unterschätzt!",IF(Berechnung_Male!$E$46>=14.5,"Der biologische Entwicklungsstand des Athleten ist möglicherweise verzögert; Dh. im Vergleich mit Gleichalterigen wird seine Leistung möglicherweise unterschätzt!","Der biologische Entwicklungsstand des Athleten entspricht dem Alter.")))) -> 

Sheet Berechnung_Female (hidden)
A1: Year from PHV | B1: early | C1: average | D1: late
A2: -4 | B2: 42.61 | C2: 38.81 | D2: 34.35 | F2: weiblich
A3: -3.8 | B3: 41.49 | C3: 37.67 | D3: 33.27
A4: -3.6 | B4: 40.39 | C4: 36.55 | D4: 32.2
A5: -3.4 | B5: 39.3 | C5: 35.44 | D5: 31.14
A6: -3.2 | B6: 38.21 | C6: 34.34 | D6: 30.09
A7: -3 | B7: 37.13 | C7: 33.25 | D7: 29.04
A8: -2.8 | B8: 36.04 | C8: 32.16 | D8: 27.99
A9: -2.6 | B9: 34.94 | C9: 31.04 | D9: 26.93
A10: -2.4 | B10: 33.82 | C10: 29.91 | D10: 25.87
A11: -2.2 | B11: 32.68 | C11: 28.76 | D11: 24.79
A12: -2 | B12: 31.53 | C12: 27.58 | D12: 23.71
A13: -1.8 | B13: 30.44 | C13: 26.39 | D13: 22.63
A14: -1.6 | B14: 29.36 | C14: 25.21 | D14: 21.55
A15: -1.4 | B15: 28.24 | C15: 24.03 | D15: 20.47
A16: -1.2 | B16: 27.09 | C16: 22.85 | D16: 19.37
A17: -1 | B17: 25.87 | C17: 21.66 | D17: 18.25
A18: -0.8 | B18: 24.54 | C18: 20.44 | D18: 17.07
A19: -0.6 | B19: 23.09 | C19: 19.16 | D19: 15.81
A20: -0.4 | B20: 21.5 | C20: 17.8 | D20: 14.44
A21: -0.2 | B21: 19.77 | C21: 16.33 | D21: 12.94
A22: 0 | B22: 17.94 | C22: 14.75 | D22: 11.36
A23: 0.2 | B23: 16.09 | C23: 13.13 | D23: 9.81
A24: 0.4 | B24: 14.3 | C24: 11.56 | D24: 8.42
A25: 0.6 | B25: 12.64 | C25: 10.11 | D25: 7.2
A26: 0.8 | B26: 11.11 | C26: 8.77 | D26: 6.12
A27: 1 | B27: 9.69 | C27: 7.52 | D27: 5.13
A28: 1.2 | B28: 8.39 | C28: 6.37 | D28: 4.24
A29: 1.4 | B29: 7.2 | C29: 5.33 | D29: 3.46
A30: 1.6 | B30: 6.14 | C30: 4.42 | D30: 2.8
A31: 1.8 | B31: 5.19 | C31: 3.64 | D31: 2.25
A32: 2 | B32: 4.36 | C32: 2.99 | D32: 1.82
A33: 2.2 | B33: 3.63 | C33: 2.45 | D33: 1.46
A34: 2.4 | B34: 2.99 | C34: 1.99 | D34: 1.18
A35: 2.6 | B35: 2.42 | C35: 1.6 | D35: 0.94
A36: 2.8 | B36: 1.92 | C36: 1.26 | D36: 0.74
A37: 3 | B37: 1.47 | C37: 0.96 | D37: 0.57
A38: 3.2 | B38: 1.07 | C38: 0.69 | D38: 0.41
A39: 3.4 | B39: 0.72 | C39: 0.46 | D39: 0.28
A40: 3.6 | B40: 0.43 | C40: 0.26 | D40: 0.17
A41: 3.8 | B41: 0.19 | C41: 0.11 | D41: 0.08
A42: 4 | B42: 0 | C42: 0 | D42: 0
A45: Alter | B45: =(#REF!-#REF!)/365 ->  | D45: Maturity offset | E45: =-9.236+(0.0002708*B46*#REF!)+(-0.001663*B45*B46)+(0.007216*B45*#REF!)+(0.02292*(#REF!/#REF!)*100) -> 
A46: Beinlänge | B46: =#REF!-#REF! ->  | D46: PHV | E46: =B45-E45 -> 
D47: Spaltenangabe Tabelle | E47: =IF(E46<13,2,IF(E46<15,3,4)) -> 
A49: Wachstumsreserve | B49: =VLOOKUP(Berechnung_Female!$E$45,Berechnung_Female!$A$1:$D$42,Berechnung_Female!$E$47,TRUE) -> 
A55: =IF(Berechnung_Female!$E$46<13,"Der biologische Entwicklungstand des Athleten ist wahrscheinlich beschleunigt; Dh. im Vergleich mit Gleichalterigen wird seine Leistung ev. überschätzt! ",IF(Berechnung_Female!$E$46<=13.5,"Der biologische Entwicklungstand des Athleten ist möglicherweise beschleunigt; Dh. im Vergleich mit Gleichalterigen wird seine Leistung möglicherweise überschätzt! ",IF(Berechnung_Female!$E$46>15,"Der biologische Entwicklungsstand des Athleten ist wahrscheinlich verzögert; Dh. im Vergleich mit Gleichalterigen wird seine Leistung ev. unterschätzt!",IF(Berechnung_Female!$E$46>=14.5,"Der biologische Entwicklungsstand des Athleten ist möglicherweise verzögert; Dh. im Vergleich mit Gleichalterigen wird seine Leistung möglicherweise unterschätzt!","Der biologische Entwicklungsstand des Athleten entspricht dem Alter.")))) -> 
